{"text_format":"1","workbook":"xlsx","n_sheets":29,"sheets":["Inv.","Prijzen","Prijswinnaars","Algemeen Kampioen","Ere klasse","A klasse","B klasse","Dames","Jeugd","KORPSEN","OPLOO","OVERLOON","BOEKEL","HEIJEN","BEUGEN","HEI EN BOEICOP","ST. ANTHONIS","OEFFELT","GEFFEN","OSS","AFFERDEN","GROENINGEN","BEERS","HAPERT","ZEELAND","Blad1","Kampioenen","Gemiddelde","Financieel"],"not_rendered":{"charts":0,"images":0,"macros":1,"external_links":0,"defined_names":122,"comments":0,"pivot_tables":0},"unopened":[],"bounds":{"document_bytes":16777216,"sheet_cells":100000,"rows_first":2000,"rows_last":500,"rows_between":2000,"halvings":0,"cell_chars":16384,"cell_head_chars":4096},"cells_cut":0,"cells_raw":0,"read":"whole","date_system":"1900"}

{"sheet":"Inv.","index":0,"n_rows":217,"n_cols":30,"rows_kept":217,"cut":false,"hidden":false,"merged":[[1,1,1,27],[0,1,0,27]]}
[null,"1e Open  \"Kruisboog op wip\" 2023",null,null,null,null,null,null,null,null,null,null,null,null,null,null,null,null,null,null,null,null,null,null,null,null,null,null,{"$f":"Financieel!C15","v":57.500000000124999},{"$f":"IF(AC1<0,\"te kort in 2020\",\"over in 2020\")","v":"over in 2020"}]
[null,"8 April bij het St. Anthonius/St. Nicolaasgilde in Groeningen",null,null,null,null,null,null,null,null,null,null,null,null,null,null,null,null,null,null,null,null,null,null,null,null,null,null,{"$f":"-(Financieel!D10+Financieel!E11)+Financieel!I20","v":57.500000000124999},"vandaag"]
[]
[]
[null,"Naam","Plaats","Klasse","Jeugd","gem.","Totaal",1,2,3,4,5,6,7,8,9,10,11,12,13,14,15,16,17,18,19,20,"Kampen","Kampioen"]
[1,"Theo Heijligers","Oploo","A",null,16.5,{"$f":"SUM(H6:AA6)","v":16},1,1,0,0,1,1,1,0,1,1,1,1,1,1,1,1,0,1,1,1]
[2,"Riny v.d. Bungelaar","Oploo","A",null,16,8,0,0,0,0,1,1,0,0,0,1,1,0,1,0,0,0,1,1,0,1]
[3,"Ronnie Sommers","Oploo","A",null,16.5,0]
[4,"Jan van Sambeek","Oploo","A",null,14.4,0]
[5,"Gerrit Ermers","Oploo","A",null,13.5,12,1,1,1,1,1,1,0,0,1,0,1,1,0,0,0,1,1,1,0,0]
[6,"Theo Sommers","Oploo","A",null,13,14,1,0,1,1,1,1,1,1,1,1,0,1,0,1,0,1,1,1,0,0]
[7,null,null,null,null,null,0]
[8,null,null,null,null,null,0]
[9,null,null,null,null,null,0]
[10,null,null,null,null,null,0]
[11,null,null,null,null,null,0]
[12,null,null,null,null,null,0]
[]
[null,"Naam","Plaats","Klasse","Jeugd","gem.","Totaal",1,2,3,4,5,6,7,8,9,10,11,12,13,14,15,16,17,18,19,20,"Kampen","Kampioen"]
[1,"Geert Arts","Overloon","Ere",null,18.2,{"$f":"SUM(H20:AA20)","v":18},1,1,1,1,1,1,1,1,1,1,1,1,1,1,0,1,1,1,0,1]
[2,null,null,null,null,null,{"$f":"SUM(H21:AA21)","v":0}]
[3,null,null,null,null,null,0]
[4,null,null,null,null,null,0]
[5,null,null,null,null,null,{"$f":"SUM(H24:AA24)","v":0}]
[6,null,null,null,null,null,0]
[7,null,null,null,null,null,0]
[8,null,null,null,null,null,0]
[9,null,null,null,null,null,{"$f":"SUM(H28:AA28)","v":0}]
[10,null,null,null,null,null,0]
[11,null,null,null,null,null,0]
[12,null,null,null,null,null,0]
[]
[null,"Naam","Plaats","Klasse","Jeugd","gem.","Totaal",1,2,3,4,5,6,7,8,9,10,11,12,13,14,15,16,17,18,19,20,"Kampen","Kampioen"]
[1,"Jan Manders","Boekel","Ere",null,null,{"$f":"SUM(H34:AA34)","v":0}]
[2,"Thijs Sanders","Boekel","B",null,7,{"$f":"SUM(H35:AA35)","v":0}]
[3,"Arie v/d Kimmenade","Boekel","A",null,15.25,0]
[4,"Jan Leenders","Boekel","A",null,13,0]
[5,"Jan Weren","Boekel","A",null,null,0]
[6,"Jo Vluggen","Boekel","B",null,12,14,1,1,1,0,1,1,0,0,1,0,1,1,1,1,1,1,1,1,0,0]
[7,"Frits Koolen","Boekel","A",null,14,0]
[8,"Gerrit Janssen","Boekel","A",null,16.29,15,1,1,0,0,1,1,1,1,1,0,1,1,1,1,1,1,1,0,1,0,"10"]
[9,"Maria Janssen","Boekel","A",null,16.29,11,1,1,0,1,0,1,1,1,1,1,0,0,0,1,1,0,0,1,0,0]
[10,null,null,null,null,null,0]
[11,null,null,null,null,null,0]
[12,null,null,null,null,null,0]
[]
[null,"Naam","Plaats","Klasse","Jeugd","gem.","Totaal",1,2,3,4,5,6,7,8,9,10,11,12,13,14,15,16,17,18,19,20,"Kampen","Kampioen"]
[1,"Markus Katalowski","Heijen","A",null,15.5,{"$f":"SUM(H48:AA48)","v":11},1,0,0,1,1,0,0,1,0,1,1,1,1,1,0,0,1,1,0,0]
[2,"Martijn Graat","Heijen","Ere",null,17.399999999999999,18,1,1,1,1,1,1,1,1,1,1,1,1,1,1,1,1,1,0,1,0]
[3,"Jos Graat","Heijen","A",null,16.2,12,1,1,0,1,1,1,0,1,1,1,0,1,1,1,0,0,0,1,0,0]
[4,"Gerrit Behet","Heijen","A",null,13.25,0]
[5,"Antoon Graat","Heijen","B",null,10.5,4,0,0,0,0,0,0,1,0,0,0,1,0,0,1,0,1,0,0,0,0]
[6,null,null,null,null,null,0]
[7,null,null,null,null,null,0]
[8,null,null,null,null,null,0]
[9,null,null,null,null,null,0]
[10,null,null,null,null,null,0]
[11,null,null,null,null,null,0]
[12,null,null,null,null,null,0]
[]
[null,"Naam","Plaats","Klasse","Jeugd","gem.","Totaal",1,2,3,4,5,6,7,8,9,10,11,12,13,14,15,16,17,18,19,20,"Kampen","Kampioen"]
[1,"Marius Franssen","Beugen","Ere",null,17,{"$f":"SUM(H62:AA62)","v":0}]
[2,"Theo Groothusen","Beugen","A",null,13.8,{"$f":"SUM(H63:AA63)","v":0}]
[3,"Sjaak Verrijdt","Beugen","B",null,10.5,{"$f":"SUM(H64:AA64)","v":0}]
[4,"Marcel Dekkers","Beugen","B",null,10,{"$f":"SUM(H65:AA65)","v":0}]
[5,null,null,null,null,null,{"$f":"SUM(H66:AA66)","v":0}]
[6,null,null,null,null,null,{"$f":"SUM(H67:AA67)","v":0}]
[7,null,null,null,null,null,0]
[8,null,null,null,null,null,0]
[9,null,null,null,null,null,0]
[10,null,null,null,null,null,0]
[11,null,null,null,null,null,0]
[12,null,null,null,null,null,0]
[]
[null,"Naam","Plaats","Klasse","Jeugd","gem.","Totaal",1,2,3,4,5,6,7,8,9,10,11,12,13,14,15,16,17,18,19,20,"Kampen","Kampioen"]
[1,"Walter Huisman","Hei en Boeicop","Ere",null,18.170000000000002,{"$f":"SUM(H76:AA76)","v":0}]
[2,"Gratia Brand","Hei en Boeicop","Ere","dame",17.2,{"$f":"SUM(H77:AA77)","v":0}]
[3,"Fons Brand","Hei en Boeicop","A",null,16,0]
[4,"Leo v. Heumen","Hei en Boeicop","A",null,13.5,{"$f":"SUM(H79:AA79)","v":0}]
[5,"Dik de Vor","Hei en Boeicop","A",null,13,0]
[6,null,null,null,null,null,0]
[7,null,null,null,null,null,0]
[8,null,null,null,null,null,0]
[9,null,null,null,null,null,0]
[10,null,null,null,null,null,0]
[11,null,null,null,null,null,0]
[12,null,null,null,null,null,0]
[]
[null,"Naam","Plaats","Klasse","Jeugd","gem.","Totaal",1,2,3,4,5,6,7,8,9,10,11,12,13,14,15,16,17,18,19,20,"Kampen","Kampioen"]
[1,"Rinie Bloemen","St. Anthonis","A",null,16.75,{"$f":"SUM(H90:AA90)","v":0}]
[2,"Noud v. Lankveld","St. Anthonis","A",null,16,{"$f":"SUM(H91:AA91)","v":0}]
[3,"Gerrit Wientjes","St. Anthonis","A",null,15.2,{"$f":"SUM(H92:AA92)","v":14},1,1,1,0,1,1,1,0,0,1,1,1,0,1,0,0,1,1,1,1]
[4,"Wiel Peeters","St. Anthonis","A",null,14,{"$f":"SUM(H93:AA93)","v":4},0,0,0,0,0,0,1,0,0,0,0,1,0,0,1,0,0,0,1,0]
[5,"Thijs van Tilborg","St. Anthonis","B",null,11.2,10,1,0,0,1,1,1,1,1,0,0,0,0,1,0,1,0,0,0,1,1]
[6,"Sjaak Peeters","St. Anthonis","A",null,13.4,0]
[7,"Marcel Hermens","St. Anthonis","A",null,14.25,13,1,1,0,0,0,1,1,1,1,1,1,1,0,1,1,1,0,0,1,0]
[8,null,null,null,null,null,0]
[9,null,null,null,null,null,0]
[10,null,null,null,null,null,0]
[11,null,null,null,null,null,0]
[12,null,null,null,null,null,0]
[]
[null,"Naam","Plaats","Klasse","Jeugd","gem.","Totaal",1,2,3,4,5,6,7,8,9,10,11,12,13,14,15,16,17,18,19,20,"Kampen","Kampioen"]
[1,"Stefan Heiltjes","Oeffelt","Ere",null,18.399999999999999,{"$f":"SUM(H104:AA104)","v":0}]
[2,"Marius Gieben","Oeffelt","Ere",null,17.2,{"$f":"SUM(H105:AA105)","v":0}]
[3,"Marco Robbins","Oeffelt","A",null,15.4,{"$f":"SUM(H106:AA106)","v":15},0,1,1,1,1,1,0,1,1,1,1,1,0,0,1,1,1,0,1,1,"0"]
[4,"Henri Piek","Oeffelt","B",null,9,{"$f":"SUM(H107:AA107)","v":0}]
[5,null,null,null,null,null,0]
[6,null,null,null,null,null,0]
[7,null,null,null,null,null,0]
[8,null,null,null,null,null,0]
[9,null,null,null,null,null,0]
[10,null,null,null,null,null,0]
[11,null,null,null,null,null,0]
[12,null,null,null,null,null,0]
[]
[null,"Naam","Plaats","Klasse","Jeugd","gem.","Totaal",1,2,3,4,5,6,7,8,9,10,11,12,13,14,15,16,17,18,19,20,"Kampen","Kampioen"]
[1,"Jos Coppens","Geffen","Ere",null,null,{"$f":"SUM(H118:AA118)","v":0}]
[2,"Piet van Erp","Geffen","Ere",null,null,0]
[3,"Albert van Orsouw","Geffen","Ere",null,null,0]
[4,"Jan v/d Heijden","Geffen","A",null,null,0]
[5,"Gerard Gerrits","Geffen","Ere",null,null,0]
[6,"Ben Visser","Geffen","A",null,null,0]
[7,null,null,null,null,null,0]
[8,null,null,null,null,null,0]
[9,null,null,null,null,null,0]
[10,null,null,null,null,null,0]
[11,null,null,null,null,null,0]
[12,null,null,null,null,null,0]
[]
[null,"Naam","Plaats","Klasse","Jeugd","gem.","Totaal",1,2,3,4,5,6,7,8,9,10,11,12,13,14,15,16,17,18,19,20,"Kampen","Kampioen"]
[1,"Frans Roersch","Afferden","B",null,10.5,{"$f":"SUM(H132:AA132)","v":0}]
[2,null,null,null,null,null,{"$f":"SUM(H133:AA133)","v":0}]
[3,null,null,null,null,null,{"$f":"SUM(H134:AA134)","v":0}]
[4,null,null,null,null,null,0]
[5,null,null,null,null,null,0]
[6,null,null,null,null,null,0]
[7,null,null,null,null,null,0]
[8,null,null,null,null,null,0]
[9,null,null,null,null,null,0]
[10,null,null,null,null,null,0]
[11,null,null,null,null,null,0]
[12,null,null,null,null,null,0]
[]
[null,"Naam","Plaats","Klasse","Jeugd","gem.","Totaal",1,2,3,4,5,6,7,8,9,10,11,12,13,14,15,16,17,18,19,20,"Kampen","Kampioen"]
[1,"Frank Akkermans","Oss","A",null,15.25,{"$f":"SUM(H146:AA146)","v":0}]
[2,"Michael Akkermans","Oss","A",null,17,0]
[3,null,null,null,null,null,0]
[4,null,null,null,null,null,0]
[5,null,null,null,null,null,0]
[6,null,null,null,null,null,0]
[7,null,null,null,null,null,0]
[8,null,null,null,null,null,{"$f":"SUM(H153:AA153)","v":0}]
[9,null,null,null,null,null,0]
[10,null,null,null,null,null,0]
[11,null,null,null,null,null,0]
[12,null,null,null,null,null,0]
[]
[null,"Naam","Plaats","Klasse","Jeugd","gem.","Totaal",1,2,3,4,5,6,7,8,9,10,11,12,13,14,15,16,17,18,19,20,"Kampen","Kampioen"]
[1,"Rien Claassen","Beers","A",null,16.329999999999998,{"$f":"SUM(H160:AA160)","v":0}]
[2,"Nick Hendriks","Beers","Ere",null,17,0]
[3,"Harry Nabuurs","Beers","Ere",null,17,0]
[4,"Danny Hendriks","Beers","A",null,16.5,0]
[5,"Noud Thelosen","Beers","A",null,14.6,0]
[6,"Henk Strik","Beers","B",null,8.67,0]
[7,null,null,null,null,null,0]
[8,null,null,null,null,null,0]
[9,null,null,null,null,null,0]
[10,null,null,null,null,null,0]
[11,null,null,null,null,null,0]
[12,null,null,null,null,null,0]
[]
[null,"Naam","Plaats","Klasse","Jeugd","gem.","Totaal",1,2,3,4,5,6,7,8,9,10,11,12,13,14,15,16,17,18,19,20,"Kampen","Kampioen"]
[1,"Wim Hoevenaars","Hapert","Ere",null,17,{"$f":"SUM(H174:AA174)","v":0}]
[2,"Jan Huibers","Hapert","A",null,15,0]
[3,"Theo Gijsbers","Hapert","B",null,9,0]
[4,"Willem Kirchmer","Hapert","A",null,13,0]
[5,null,null,null,null,null,0]
[6,null,null,null,null,null,0]
[7,null,null,null,null,null,0]
[8,null,null,null,null,null,0]
[9,null,null,null,null,null,0]
[10,null,null,null,null,null,0]
[11,null,null,null,null,null,0]
[12,null,null,null,null,null,0]
[]
[null,"Naam","Plaats","Klasse","Jeugd","gem.","Totaal",1,2,3,4,5,6,7,8,9,10,11,12,13,14,15,16,17,18,19,20,"Kampen","Kampioen"]
[1,"Piet Hendriks","Zeeland","A",null,14.6,{"$f":"SUM(H188:AA188)","v":10},1,1,1,1,0,1,1,1,0,0,1,1,0,0,1,0,0,0,0,0]
[2,null,null,null,null,null,{"$f":"SUM(H189:AA189)","v":0}]
[3,null,null,null,null,null,0]
[4,null,null,null,null,null,0]
[5,null,null,null,null,null,0]
[6,null,null,null,null,null,0]
[7,null,null,null,null,null,0]
[8,null,null,null,null,null,0]
[9,null,null,null,null,null,0]
[10,null,null,null,null,null,0]
[11,null,null,null,null,null,0]
[12,null,null,null,null,null,0]
[]
[null,"Naam","Plaats","Klasse","Jeugd","gem.","Totaal",1,2,3,4,5,6,7,8,9,10,11,12,13,14,15,16,17,18,19,20,"Kampen","Kampioen"]
[1,"Jac Gerrits","Groeningen","Ere",null,17.8,{"$f":"SUM(H202:AA202)","v":18},1,1,1,1,1,1,1,1,1,1,1,0,1,1,1,1,1,0,1,1]
[2,"Theo van Kessel","Groeningen","Ere",null,17.25,{"$f":"SUM(H203:AA203)","v":20},1,1,1,1,1,1,1,1,1,1,1,1,1,1,1,1,1,1,1,1]
[3,"Rinus Thijsen","Groeningen","A",null,14.8,{"$f":"SUM(H204:AA204)","v":18},1,1,1,1,1,1,1,1,0,1,1,1,1,1,1,1,1,1,1,0]
[4,"Theo Vervoort","Groeningen","A",null,16,{"$f":"SUM(H205:AA205)","v":15},1,0,1,1,0,1,1,1,1,1,1,1,1,1,0,1,0,0,1,1,"111"]
[5,"Truus Kusters","Groeningen","A","dame",15,{"$f":"SUM(H206:AA206)","v":0}]
[6,"Peter Jacobs","Groeningen","A",null,14.67,{"$f":"SUM(H207:AA207)","v":0}]
[7,"Chris Rijnen","Groeningen","B",null,12,0]
[8,"Jens Loenen","Groeningen","A",null,null,13,1,1,1,1,0,0,0,1,0,1,1,1,0,1,1,1,0,0,1,1]
[9,null,null,null,null,null,0]
[10,null,null,null,null,null,0]
[11,null,null,null,null,null,0]
[12,null,null,null,null,null,{"$f":"SUM(H213:AA213)","v":0}]
[13,null,null,null,null,null,{"$f":"SUM(H214:AA214)","v":0}]
[14,null,null,null,null,null,{"$f":"SUM(H215:AA215)","v":0}]
[15,null,null,null,null,null,0]
[16,null,null,null,null,null,0]

{"sheet":"Prijzen","index":1,"n_rows":50,"n_cols":5,"rows_kept":50,"cut":false,"hidden":false,"merged":[[4,1,4,2],[0,1,0,9],[1,1,1,6]]}
[null,{"$f":"Inv.!$B$1","v":"1e Open  \"Kruisboog op wip\" 2023"}]
[null,{"$f":"Inv.!$B$2","v":"8 April bij het St. Anthonius/St. Nicolaasgilde in Groeningen"}]
[null,"Prijzen"]
[]
[null,"Algemeen Kampioen",null,{"$f":"MAX('Algemeen Kampioen'!$A$1:$A$100)+0.0000000001","v":23.000000000099998},{"$f":"IF(D5=1.0000000001,\"deelnemer\",\"deelnemers\")","v":"deelnemers"}]
[null,"Naam","Plaats","Totaal","Kampen"]
[1,{"$f":"IF($D7>0,'Algemeen Kampioen'!B8,\"Geen deelname\")","v":"Theo van Kessel"},{"$f":"IF($D7>0,'Algemeen Kampioen'!C8,\"\")","v":"Groeningen"},{"$f":"'Algemeen Kampioen'!D8","v":20},{"$f":"IF($D7>0,'Algemeen Kampioen'!Y8,\"\")","v":0}]
[]
[]
[null,"Ere klasse",null,{"$f":"MAX('Ere klasse'!$A$1:$A$75)+0.0000000001","v":4.0000000001},{"$f":"IF(D10=1.0000000001,\"deelnemer\",\"deelnemers\")","v":"deelnemers"}]
[]
[null,"Naam","Plaats","Totaal","Kampen"]
[{"$f":"'Ere klasse'!A8","v":1},{"$f":"IF($D$13>0,'Ere klasse'!B8,\"Geen deelname\")","v":"Theo van Kessel"},{"$f":"IF($D$13>0,'Ere klasse'!C8,\"\")","v":"Groeningen"},{"$f":"'Ere klasse'!D8","v":20},{"$f":"IF($D13>0,'Ere klasse'!Y8,\"\")","v":0}]
[{"$f":"'Ere klasse'!A9","v":2},{"$f":"IF($D$14>0,'Ere klasse'!B9,\"Geen deelname\")","v":"Jac Gerrits"},{"$f":"IF($D$14>0,'Ere klasse'!C9,\"\")","v":"Groeningen"},{"$f":"'Ere klasse'!D9","v":18},{"$f":"IF($D14>0,'Ere klasse'!Y9,\"\")","v":0}]
[{"$f":"'Ere klasse'!A10","v":3},{"$f":"IF($D$15>0,'Ere klasse'!B10,\"Geen deelname\")","v":"Geert Arts"},{"$f":"IF($D$15>0,'Ere klasse'!C10,\"\")","v":"Overloon"},{"$f":"'Ere klasse'!D10","v":18},{"$f":"IF($D15>0,'Ere klasse'!Y10,\"\")","v":0}]
[]
[null,"A klasse",null,{"$f":"MAX('A klasse'!$A$1:$A$75)+0.0000000001","v":16.000000000099998},{"$f":"IF(D17=1.0000000001,\"deelnemer\",\"deelnemers\")","v":"deelnemers"}]
[]
[null,"Naam","Plaats","Totaal","Kampen"]
[1,{"$f":"IF($D$20>0,'A klasse'!B8,\"Geen deelname\")","v":"Rinus Thijsen"},{"$f":"IF($D$20>0,'A klasse'!C8,\"\")","v":"Groeningen"},{"$f":"'A klasse'!D8","v":18},{"$f":"IF($D20>0,'A klasse'!Y8,\"\")","v":0}]
[2,{"$f":"IF($D$21>0,'A klasse'!B9,\"Geen deelname\")","v":"Theo Heijligers"},{"$f":"IF($D$21>0,'A klasse'!C9,\"\")","v":"Oploo"},{"$f":"'A klasse'!D9","v":16},{"$f":"IF($D21>0,'A klasse'!Y9,\"\")","v":0}]
[{"$f":"IF(D22>0,A21+1,\"\")","v":3},{"$f":"IF($D$21>0,'A klasse'!B10,\"Geen deelname\")","v":"Theo Vervoort"},{"$f":"IF($D$21>0,'A klasse'!C10,\"\")","v":"Groeningen"},{"$f":"'A klasse'!D10","v":15},{"$f":"IF($D22>0,'A klasse'!Y10,\"\")","v":"111"}]
[4,{"$f":"IF($D$21>0,'A klasse'!B11,\"Geen deelname\")","v":"Gerrit Janssen"},{"$f":"IF($D$21>0,'A klasse'!C11,\"\")","v":"Boekel"},{"$f":"'A klasse'!D11","v":15},{"$f":"IF($D23>0,'A klasse'!Y11,\"\")","v":"10"}]
[]
[null,"B klasse",null,{"$f":"MAX('B klasse'!$A$1:$A$75)+0.0000000001","v":3.0000000001}]
[null,"Naam","Plaats","Totaal"]
[1,{"$f":"IF($D27>0,'B klasse'!B8,\"Geen deelname\")","v":"Jo Vluggen"},{"$f":"IF($D27>0,'B klasse'!C8,\"\")","v":"Boekel"},{"$f":"'B klasse'!D8","v":14},{"$f":"IF($D27>0,'B klasse'!Y8,\"\")","v":0}]
[2,{"$f":"IF($D28>0,'B klasse'!B9,\"Geen deelname\")","v":"Thijs van Tilborg"},{"$f":"IF($D28>0,'B klasse'!C9,\"\")","v":"St. Anthonis"},{"$f":"'B klasse'!D9","v":10},{"$f":"IF($D28>0,'B klasse'!Y9,\"\")","v":0}]
[3,{"$f":"IF($D29>0,'B klasse'!B10,\"Geen deelname\")","v":"Antoon Graat"},{"$f":"IF($D29>0,'B klasse'!C10,\"\")","v":"Heijen"},{"$f":"'B klasse'!D10","v":4},{"$f":"IF($D29>0,'B klasse'!Y10,\"\")","v":0}]
[]
[null,"Dames",null,{"$f":"MAX(Dames!$A$1:$A$75)+0.0000000001","v":1E-10},{"$f":"IF(D31=1.0000000001,\"deelnemer\",\"deelnemers\")","v":"deelnemers"}]
[]
[null,"Naam","Plaats","Totaal","Kampen"]
[1,{"$f":"IF($D34>0,Dames!B8,\"Geen deelname\")","v":"Geen deelname"},{"$f":"IF($D34>0,Dames!C8,\"\")","v":""},{"$f":"Dames!D8","v":0},{"$f":"IF($D34>0,Dames!Y8,\"\")","v":""}]
[2,{"$f":"IF($D35>0,Dames!B9,\"Geen deelname\")","v":"Geen deelname"},{"$f":"IF($D35>0,Dames!C9,\"\")","v":""},{"$f":"Dames!D9","v":0},{"$f":"IF($D35>0,Dames!Y9,\"\")","v":""}]
[3,{"$f":"IF($D36>0,Dames!B10,\"Geen deelname\")","v":"Geen deelname"},{"$f":"IF($D36>0,Dames!C10,\"\")","v":""},{"$f":"Dames!D10","v":0},{"$f":"IF($D36>0,Dames!Y10,\"\")","v":""}]
[]
[null,"Jeugd",null,{"$f":"MAX(Jeugd!$A$1:$A$75)+0.0000000001","v":1E-10},{"$f":"IF(D38=1.0000000001,\"deelnemer\",\"deelnemers\")","v":"deelnemers"}]
[]
[null,"Naam","Plaats","Totaal","Kampen"]
[1,{"$f":"IF($D41>0,Jeugd!B8,\"Geen deelname\")","v":"Geen deelname"},{"$f":"IF($D41>0,Jeugd!C8,\"\")","v":""},{"$f":"Jeugd!D8","v":0},{"$f":"IF($D41>0,Jeugd!Y8,\"\")","v":""}]
[2,{"$f":"IF($D42>0,Jeugd!B9,\"Geen deelname\")","v":"Geen deelname"},{"$f":"IF($D42>0,Jeugd!C9,\"\")","v":""},{"$f":"Jeugd!D9","v":0},{"$f":"IF($D42>0,Jeugd!Y9,\"\")","v":""}]
[3,{"$f":"IF($D43>0,Jeugd!B10,\"Geen deelname\")","v":"Geen deelname"},{"$f":"IF($D43>0,Jeugd!C10,\"\")","v":""},{"$f":"Jeugd!D10","v":0},{"$f":"IF($D43>0,Jeugd!Y10,\"\")","v":""}]
[]
[null,"Korpsen",null,{"$f":"(SUMIF(KORPSEN!AA8:AA50,\">3\")/4)+0.0000000001","v":4.0000000001},{"$f":"IF(D45=1,\"korps\",\"korpsen\")","v":"korpsen"}]
[]
[null,"Vereniging","Plaats","Totaal","Kampen"]
[1,{"$f":"IF($D48>0,KORPSEN!B9,\"Geen deelname\")","v":"St. Anthonius - St. Nicolaasgilde 1"},{"$f":"IF($D48>0,KORPSEN!C9,\"\")","v":"Groeningen"},{"$f":"KORPSEN!D9","v":71},{"$f":"IF($D48>0,KORPSEN!Y9,\"\")","v":0}]
[2,{"$f":"IF($D49>0,KORPSEN!B10,\"Geen deelname\")","v":"St. Matthiasgilde 1"},{"$f":"IF($D49>0,KORPSEN!C10,\"\")","v":"Oploo"},{"$f":"KORPSEN!D10","v":50},{"$f":"IF($D49>0,KORPSEN!Y10,\"\")","v":0}]
[3,{"$f":"IF($D50>0,KORPSEN!B11,\"Geen deelname\")","v":"St. Dionysiusgilde 1"},{"$f":"IF($D50>0,KORPSEN!C11,\"\")","v":"Heijen"},{"$f":"KORPSEN!D11","v":45},{"$f":"IF($D50>0,KORPSEN!Y11,\"\")","v":0}]

{"sheet":"Prijswinnaars","index":2,"n_rows":42,"n_cols":5,"rows_kept":42,"cut":false,"hidden":false,"merged":[[3,1,3,2]]}
[null,{"$f":"Inv.!$B$1","v":"1e Open  \"Kruisboog op wip\" 2023"}]
[null,{"$f":"Inv.!$B$2","v":"8 April bij het St. Anthonius/St. Nicolaasgilde in Groeningen"}]
[null,"Prijzen"]
[null,"Algemeen Kampioen (geen prijs)",null,null,{"$f":"IF(D4=1.0000000001,\"deelnemer\",\"deelnemers\")","v":"deelnemers"}]
[null,"Naam","Plaats","Totaal","Kampen"]
[1,"Theo van Kessel","Groeningen",20,0]
[]
[null,"Ere klasse",null,null,{"$f":"IF(D8=1.0000000001,\"deelnemer\",\"deelnemers\")","v":"deelnemers"}]
[null,"Naam","Plaats","Totaal","Kampen"]
[1,"Theo van Kessel","Groeningen",20,0]
[2,"Jac Gerrits","Groeningen",18,0]
[3,"Geert Arts","Overloon",18,0]
[]
[null,"A klasse",null,null,{"$f":"IF(D14=1.0000000001,\"deelnemer\",\"deelnemers\")","v":"deelnemers"}]
[null,"Naam","Plaats","Totaal","Kampen"]
[1,"Rinus Thijsen","Groeningen",18,0]
[2,"Theo Heijligers","Oploo",16,0]
[3,"Theo Vervoort","Groeningen",15,"111"]
[]
[null,"B klasse",null,null,{"$f":"IF(D20=1.0000000001,\"deelnemer\",\"deelnemers\")","v":"deelnemers"}]
[null,"Naam","Plaats","Totaal","Kampen"]
[1,"Jo Vluggen","Boekel",14,0]
[2,"Thijs van Tilborg","St. Anthonis",10,0]
[3,"Antoon Graat","Heijen",4,0]
[]
[null,"Dames  (geen prijs)",null,null,{"$f":"IF(D26=1.0000000001,\"deelnemer\",\"deelnemers\")","v":"deelnemers"}]
[null,"Naam","Plaats","Totaal","Kampen"]
[1,"Geen deelname","",0,""]
[2,"Geen deelname","",0,""]
[3,"Geen deelname","",0,""]
[]
[null,"Jeugd  (geen prijs)",null,null,{"$f":"IF(D32=1.0000000001,\"deelnemer\",\"deelnemers\")","v":"deelnemers"}]
[null,"Naam","Plaats","Totaal","Kampen"]
[1,"Geen deelname","",0,""]
[2,"Geen deelname","",0,""]
[3,"Geen deelname","",0,""]
[]
[null,"Korpsen",null,null,{"$f":"IF(D38=1.0000000001,\"deelnemer\",\"deelnemers\")","v":"deelnemers"}]
[null,"Vereniging","Plaats","Totaal","Kampen"]
[1,"St. Anthonius - St. Nicolaasgilde 1","Groeningen",71,0]
[2,"St. Matthiasgilde 1","Oploo",50,0]
[3,"St. Dionysiusgilde 1","Heijen",45,0]

{"sheet":"Algemeen Kampioen","index":3,"n_rows":100,"n_cols":27,"rows_kept":100,"cut":false,"hidden":false,"merged":[[0,1,0,24],[4,1,4,3],[4,6,4,10],[4,4,4,5],[1,1,1,23]]}
[null,{"$f":"Inv.!$B$1","v":"1e Open  \"Kruisboog op wip\" 2023"}]
[null,{"$f":"Inv.!$B$2","v":"8 April bij het St. Anthonius/St. Nicolaasgilde in Groeningen"}]
[]
[]
[null,"Algemeen kampioen",null,null,{"$f":"MAX(A8:A100)","v":23},null,{"$f":"IF(E5=1,\"deelnemer\",\"deelnemers\")","v":"deelnemers"}]
[]
[null,"Naam","Plaats","Totaal",1,2,3,4,5,6,7,8,9,10,11,12,13,14,15,16,17,18,19,20,"Kampioen"]
[{"$f":"IF(D8>0,A7+1,\"\")","v":1},"Theo van Kessel","Groeningen",20,1,1,1,1,1,1,1,1,1,1,1,1,1,1,1,1,1,1,1,1,null,{"$f":"IF(Y8=\"\",AA8,\"\")","v":""},{"$f":"IF(D8=D9,\"Kampen\",\"\")","v":""}]
[{"$f":"IF(D9>0,A8+1,\"\")","v":2},"Geert Arts","Overloon",18,1,1,1,1,1,1,1,1,1,1,1,1,1,1,0,1,1,1,0,1,null,{"$f":"IF(Y9=\"\",AA9,\"\")","v":""},{"$f":"IF(D9=D$8,\"Kampen\",\"\")","v":""}]
[3,"Martijn Graat","Heijen",18,1,1,1,1,1,1,1,1,1,1,1,1,1,1,1,1,1,0,1,0,null,"",{"$f":"IF(D10=D$8,\"Kampen\",\"\")","v":""}]
[4,"Jac Gerrits","Groeningen",18,1,1,1,1,1,1,1,1,1,1,1,0,1,1,1,1,1,0,1,1,null,"",""]
[5,"Rinus Thijsen","Groeningen",18,1,1,1,1,1,1,1,1,0,1,1,1,1,1,1,1,1,1,1,0,null,"",""]
[6,"Theo Heijligers","Oploo",16,1,1,0,0,1,1,1,0,1,1,1,1,1,1,1,1,0,1,1,1,null,"",""]
[7,"Gerrit Janssen","Boekel",15,1,1,0,0,1,1,1,1,1,0,1,1,1,1,1,1,1,0,1,0,null,"",""]
[8,"Marco Robbins","Oeffelt",15,0,1,1,1,1,1,0,1,1,1,1,1,0,0,1,1,1,0,1,1,null,"",""]
[9,"Theo Vervoort","Groeningen",15,1,0,1,1,0,1,1,1,1,1,1,1,1,1,0,1,0,0,1,1,null,"",{"$f":"IF(D16=D$8,\"Kampen\",\"\")","v":""}]
[10,"Theo Sommers","Oploo",14,1,0,1,1,1,1,1,1,1,1,0,1,0,1,0,1,1,1,0,0,null,"",""]
[11,"Jo Vluggen","Boekel",14,1,1,1,0,1,1,0,0,1,0,1,1,1,1,1,1,1,1,0,0]
[12,"Gerrit Wientjes","St. Anthonis",14,1,1,1,0,1,1,1,0,0,1,1,1,0,1,0,0,1,1,1,1]
[13,"Marcel Hermens","St. Anthonis",13,1,1,0,0,0,1,1,1,1,1,1,1,0,1,1,1,0,0,1,0]
[14,"Jens Loenen","Groeningen",13,1,1,1,1,0,0,0,1,0,1,1,1,0,1,1,1,0,0,1,1]
[15,"Gerrit Ermers","Oploo",12,1,1,1,1,1,1,0,0,1,0,1,1,0,0,0,1,1,1,0,0]
[16,"Jos Graat","Heijen",12,1,1,0,1,1,1,0,1,1,1,0,1,1,1,0,0,0,1,0,0]
[17,"Maria Janssen","Boekel",11,1,1,0,1,0,1,1,1,1,1,0,0,0,1,1,0,0,1,0,0]
[18,"Markus Katalowski","Heijen",11,1,0,0,1,1,0,0,1,0,1,1,1,1,1,0,0,1,1,0,0]
[19,"Thijs van Tilborg","St. Anthonis",10,1,0,0,1,1,1,1,1,0,0,0,0,1,0,1,0,0,0,1,1]
[20,"Piet Hendriks","Zeeland",10,1,1,1,1,0,1,1,1,0,0,1,1,0,0,1,0,0,0,0,0]
[21,"Riny v.d. Bungelaar","Oploo",8,0,0,0,0,1,1,0,0,0,1,1,0,1,0,0,0,1,1,0,1]
[22,"Antoon Graat","Heijen",4,0,0,0,0,0,0,1,0,0,0,1,0,0,1,0,1,0,0,0,0]
[23,"Wiel Peeters","St. Anthonis",4,0,0,0,0,0,0,1,0,0,0,0,1,0,0,1,0,0,0,1,0]
[""]
[""]
[""]
[""]
[""]
[""]
[""]
[""]
[""]
[""]
[""]
[""]
[""]
[""]
[""]
[""]
[""]
[""]
[""]
[""]
[""]
[""]
[""]
[""]
[""]
[""]
[""]
[""]
[""]
[""]
[""]
[""]
[""]
[""]
[""]
[""]
[""]
[""]
[""]
[""]
[""]
[""]
[{"$f":"IF(D73>0,A72+1,\"\")","v":""}]
[""]
[""]
[""]
[""]
[""]
[""]
[""]
[""]
[""]
[""]
[""]
[""]
[""]
[""]
[""]
[""]
[""]
[""]
[""]
[""]
[""]
[""]
[""]
[""]
[""]
[""]
[""]

{"sheet":"Ere klasse","index":4,"n_rows":67,"n_cols":29,"rows_kept":67,"cut":false,"hidden":false,"merged":[[0,1,0,23],[4,4,4,8],[1,1,1,23]]}
[null,{"$f":"Inv.!$B$1","v":"1e Open  \"Kruisboog op wip\" 2023"}]
[null,{"$f":"Inv.!$B$2","v":"8 April bij het St. Anthonius/St. Nicolaasgilde in Groeningen"}]
[]
[]
[null,"Ere klasse",null,{"$f":"MAX(A8:A67)","v":4},{"$f":"IF(D5=1,\"deelnemer\",\"deelnemers\")","v":"deelnemers"}]
[]
[null,"Naam","Plaats","Totaal",1,2,3,4,5,6,7,8,9,10,11,12,13,14,15,16,17,18,19,20,"Kampen"]
[{"$f":"IF(D8>0,A7+1,\"\")","v":1},"Theo van Kessel","Groeningen",20,1,1,1,1,1,1,1,1,1,1,1,1,1,1,1,1,1,1,1,1,null,{"$f":"IF(Y8=\"\",AA8,\"\")","v":""},{"$f":"IF(SUM(AB8:AC8)>0,\"Kampen\",\"\")","v":""},{"$f":"IF(D8=D9,1,\"\")","v":""}]
[{"$f":"IF(D9>0,A8+1,\"\")","v":2},"Jac Gerrits","Groeningen",18,1,1,1,1,1,1,1,1,1,1,1,0,1,1,1,1,1,0,1,1,null,"Kampen",{"$f":"IF(SUM(AB9:AC9)>0,\"Kampen\",\"\")","v":"Kampen"},{"$f":"IF(D9=D8,1,\"\")","v":""},{"$f":"IF(D9=D10,1,\"\")","v":1}]
[3,"Geert Arts","Overloon",18,1,1,1,1,1,1,1,1,1,1,1,1,1,1,0,1,1,1,0,1,null,"Kampen","Kampen",{"$f":"IF(D10=D9,1,\"\")","v":1},{"$f":"IF(D10=D11,1,\"\")","v":1}]
[4,"Martijn Graat","Heijen",18,1,1,1,1,1,1,1,1,1,1,1,1,1,1,1,1,1,0,1,0,null,"Kampen","Kampen",{"$f":"IF(D11=D$10,1,\"\")","v":1}]
["",null,null,null,null,null,null,null,null,null,null,null,null,null,null,null,null,null,null,null,null,null,null,null,null,"","",""]
["",null,null,null,null,null,null,null,null,null,null,null,null,null,null,null,null,null,null,null,null,null,null,null,null,"","",""]
["",null,null,null,null,null,null,null,null,null,null,null,null,null,null,null,null,null,null,null,null,null,null,null,null,"","",""]
["",null,null,null,null,null,null,null,null,null,null,null,null,null,null,null,null,null,null,null,null,null,null,null,null,"","",""]
["",null,null,null,null,null,null,null,null,null,null,null,null,null,null,null,null,null,null,null,null,null,null,null,null,"",{"$f":"IF(SUM(AB16:AC16)>0,\"Kampen\",\"\")","v":""},""]
["",null,null,null,null,null,null,null,null,null,null,null,null,null,null,null,null,null,null,null,null,null,null,null,null,"",{"$f":"IF(SUM(AB17:AC17)>0,\"Kampen\",\"\")","v":""},""]
[""]
[""]
[""]
[""]
[""]
[""]
[""]
[""]
[""]
[""]
[""]
[""]
[""]
[""]
[""]
[""]
[""]
[""]
[""]
[""]
[""]
[""]
[""]
[""]
[""]
[""]
[""]
[""]
[""]
[""]
[""]
[""]
[""]
[""]
[""]
[""]
[""]
[""]
[""]
[""]
[""]
[""]
[""]
[""]
[""]
[""]
[""]
[""]
[""]
[""]

{"sheet":"A klasse","index":5,"n_rows":67,"n_cols":29,"rows_kept":67,"cut":false,"hidden":false,"merged":[[0,1,0,23],[4,4,4,8],[1,1,1,23]]}
[null,{"$f":"Inv.!$B$1","v":"1e Open  \"Kruisboog op wip\" 2023"}]
[null,{"$f":"Inv.!$B$2","v":"8 April bij het St. Anthonius/St. Nicolaasgilde in Groeningen"}]
[]
[]
[null,"A klasse",null,{"$f":"MAX(A8:A67)","v":16},{"$f":"IF(D5=1,\"deelnemer\",\"deelnemers\")","v":"deelnemers"}]
[]
[null,"Naam","Plaats","Totaal",1,2,3,4,5,6,7,8,9,10,11,12,13,14,15,16,17,18,19,20,"Kampen"]
[{"$f":"IF(D8>0,A7+1,\"\")","v":1},"Rinus Thijsen","Groeningen",18,1,1,1,1,1,1,1,1,0,1,1,1,1,1,1,1,1,1,1,0,null,{"$f":"IF(Y8=\"\",AA8,\"\")","v":""},{"$f":"IF(SUM(AB8:AC8)>0,\"Kampen\",\"\")","v":""},{"$f":"IF(D8=D9,1,\"\")","v":""}]
[{"$f":"IF(D9>0,A8+1,\"\")","v":2},"Theo Heijligers","Oploo",16,1,1,0,0,1,1,1,0,1,1,1,1,1,1,1,1,0,1,1,1,null,"",{"$f":"IF(SUM(AB9:AC9)>0,\"Kampen\",\"\")","v":""},{"$f":"IF(D9=D8,1,\"\")","v":""},{"$f":"IF(D9=D10,1,\"\")","v":""}]
[3,"Theo Vervoort","Groeningen",15,1,0,1,1,0,1,1,1,1,1,1,1,1,1,0,1,0,0,1,1,"111","","Kampen",{"$f":"IF(D10=D9,1,\"\")","v":""},{"$f":"IF(D10=D11,1,\"\")","v":1}]
[4,"Gerrit Janssen","Boekel",15,1,1,0,0,1,1,1,1,1,0,1,1,1,1,1,1,1,0,1,0,"10","","Kampen",{"$f":"IF(D11=D$10,1,\"\")","v":1}]
[5,"Marco Robbins","Oeffelt",15,0,1,1,1,1,1,0,1,1,1,1,1,0,0,1,1,1,0,1,1,"0","","Kampen",{"$f":"IF(D12=D$10,1,\"\")","v":1}]
[6,"Gerrit Wientjes","St. Anthonis",14,1,1,1,0,1,1,1,0,0,1,1,1,0,1,0,0,1,1,1,1,null,"","",""]
[7,"Theo Sommers","Oploo",14,1,0,1,1,1,1,1,1,1,1,0,1,0,1,0,1,1,1,0,0,null,"","",""]
[8,"Jens Loenen","Groeningen",13,1,1,1,1,0,0,0,1,0,1,1,1,0,1,1,1,0,0,1,1,null,"","",""]
[9,"Marcel Hermens","St. Anthonis",13,1,1,0,0,0,1,1,1,1,1,1,1,0,1,1,1,0,0,1,0,null,"","",""]
[10,"Gerrit Ermers","Oploo",12,1,1,1,1,1,1,0,0,1,0,1,1,0,0,0,1,1,1,0,0,null,"","",""]
[11,"Jos Graat","Heijen",12,1,1,0,1,1,1,0,1,1,1,0,1,1,1,0,0,0,1,0,0]
[12,"Markus Katalowski","Heijen",11,1,0,0,1,1,0,0,1,0,1,1,1,1,1,0,0,1,1,0,0]
[13,"Maria Janssen","Boekel",11,1,1,0,1,0,1,1,1,1,1,0,0,0,1,1,0,0,1,0,0]
[14,"Piet Hendriks","Zeeland",10,1,1,1,1,0,1,1,1,0,0,1,1,0,0,1,0,0,0,0,0]
[15,"Riny v.d. Bungelaar","Oploo",8,0,0,0,0,1,1,0,0,0,1,1,0,1,0,0,0,1,1,0,1]
[16,"Wiel Peeters","St. Anthonis",4,0,0,0,0,0,0,1,0,0,0,0,1,0,0,1,0,0,0,1,0]
[""]
[""]
[""]
[""]
[""]
[""]
[""]
[""]
[""]
[""]
[""]
[""]
[""]
[""]
[""]
[""]
[""]
[""]
[""]
[""]
[""]
[""]
[""]
[""]
[""]
[""]
[""]
[""]
[""]
[""]
[""]
[""]
[""]
[""]
[""]
[""]
[""]
[""]
[""]
[""]
[""]
[""]
[""]
[""]

{"sheet":"B klasse","index":6,"n_rows":67,"n_cols":29,"rows_kept":67,"cut":false,"hidden":false,"merged":[[0,1,0,23],[4,4,4,8],[1,1,1,23]]}
[null,{"$f":"Inv.!$B$1","v":"1e Open  \"Kruisboog op wip\" 2023"}]
[null,{"$f":"Inv.!$B$2","v":"8 April bij het St. Anthonius/St. Nicolaasgilde in Groeningen"}]
[]
[]
[null,"B klasse",null,{"$f":"MAX(A8:A67)","v":3},{"$f":"IF(D5=1,\"deelnemer\",\"deelnemers\")","v":"deelnemers"}]
[]
[null,"Naam","Plaats","Totaal",1,2,3,4,5,6,7,8,9,10,11,12,13,14,15,16,17,18,19,20,"Kampen"]
[{"$f":"IF(D8>0,A7+1,\"\")","v":1},"Jo Vluggen","Boekel",14,1,1,1,0,1,1,0,0,1,0,1,1,1,1,1,1,1,1,0,0,null,{"$f":"IF(Y8=\"\",AA8,\"\")","v":""},{"$f":"IF(SUM(AB8:AC8)>0,\"Kampen\",\"\")","v":""},{"$f":"IF(D8=D9,1,\"\")","v":""}]
[{"$f":"IF(D9>0,A8+1,\"\")","v":2},"Thijs van Tilborg","St. Anthonis",10,1,0,0,1,1,1,1,1,0,0,0,0,1,0,1,0,0,0,1,1,null,"",{"$f":"IF(SUM(AB9:AC9)>0,\"Kampen\",\"\")","v":""},{"$f":"IF(D9=D8,1,\"\")","v":""},{"$f":"IF(D9=D10,1,\"\")","v":""}]
[3,"Antoon Graat","Heijen",4,0,0,0,0,0,0,1,0,0,0,1,0,0,1,0,1,0,0,0,0,null,"","",{"$f":"IF(D10=D9,1,\"\")","v":""},{"$f":"IF(D10=D11,1,\"\")","v":""}]
["",null,null,null,null,null,null,null,null,null,null,null,null,null,null,null,null,null,null,null,null,null,null,null,null,"","",{"$f":"IF(D11=D$10,1,\"\")","v":""}]
["",null,null,null,null,null,null,null,null,null,null,null,null,null,null,null,null,null,null,null,null,null,null,null,null,"","",{"$f":"IF(D12=D$10,1,\"\")","v":""}]
["",null,null,null,null,null,null,null,null,null,null,null,null,null,null,null,null,null,null,null,null,null,null,null,null,"","",""]
["",null,null,null,null,null,null,null,null,null,null,null,null,null,null,null,null,null,null,null,null,null,null,null,null,"","",""]
["",null,null,null,null,null,null,null,null,null,null,null,null,null,null,null,null,null,null,null,null,null,null,null,null,"","",""]
["",null,null,null,null,null,null,null,null,null,null,null,null,null,null,null,null,null,null,null,null,null,null,null,null,"","",""]
["",null,null,null,null,null,null,null,null,null,null,null,null,null,null,null,null,null,null,null,null,null,null,null,null,"","",""]
[""]
[""]
[""]
[""]
[""]
[""]
[""]
[""]
[""]
[""]
[""]
[""]
[""]
[""]
[""]
[""]
[""]
[""]
[""]
[""]
[""]
[""]
[""]
[""]
[""]
[""]
[""]
[""]
[""]
[""]
[""]
[""]
[""]
[""]
[""]
[""]
[""]
[""]
[""]
[""]
[""]
[""]
[""]
[""]
[""]
[""]
[""]
[""]
[""]
[""]

{"sheet":"Dames","index":7,"n_rows":67,"n_cols":29,"rows_kept":67,"cut":false,"hidden":false,"merged":[[0,1,0,23],[4,4,4,8],[1,1,1,23]]}
[null,{"$f":"Inv.!$B$1","v":"1e Open  \"Kruisboog op wip\" 2023"}]
[null,{"$f":"Inv.!$B$2","v":"8 April bij het St. Anthonius/St. Nicolaasgilde in Groeningen"}]
[]
[]
[null,"Dames",null,{"$f":"MAX(A8:A67)","v":0},{"$f":"IF(D5=1,\"deelnemer\",\"deelnemers\")","v":"deelnemers"}]
[]
[null,"Naam","Plaats","Totaal",1,2,3,4,5,6,7,8,9,10,11,12,13,14,15,16,17,18,19,20,"Kampen"]
[{"$f":"IF(D8>0,A7+1,\"\")","v":""},null,null,null,null,null,null,null,null,null,null,null,null,null,null,null,null,null,null,null,null,null,null,null,null,{"$f":"IF(Y8=\"\",AA8,\"\")","v":"Kampen"},{"$f":"IF(SUM(AB8:AC8)>0,\"Kampen\",\"\")","v":"Kampen"},{"$f":"IF(D8=D9,1,\"\")","v":1}]
[{"$f":"IF(D9>0,A8+1,\"\")","v":""},null,null,null,null,null,null,null,null,null,null,null,null,null,null,null,null,null,null,null,null,null,null,null,null,"Kampen",{"$f":"IF(SUM(AB9:AC9)>0,\"Kampen\",\"\")","v":"Kampen"},{"$f":"IF(D9=D8,1,\"\")","v":1},{"$f":"IF(D9=D10,1,\"\")","v":1}]
["",null,null,null,null,null,null,null,null,null,null,null,null,null,null,null,null,null,null,null,null,null,null,null,null,"Kampen","Kampen",{"$f":"IF(D10=D9,1,\"\")","v":1},{"$f":"IF(D10=D11,1,\"\")","v":1}]
["",null,null,null,null,null,null,null,null,null,null,null,null,null,null,null,null,null,null,null,null,null,null,null,null,"Kampen","Kampen",{"$f":"IF(D11=D$10,1,\"\")","v":1}]
["",null,null,null,null,null,null,null,null,null,null,null,null,null,null,null,null,null,null,null,null,null,null,null,null,"Kampen","Kampen",{"$f":"IF(D12=D$10,1,\"\")","v":1}]
["",null,null,null,null,null,null,null,null,null,null,null,null,null,null,null,null,null,null,null,null,null,null,null,null,"Kampen","Kampen",1]
["",null,null,null,null,null,null,null,null,null,null,null,null,null,null,null,null,null,null,null,null,null,null,null,null,"Kampen","Kampen",1]
["",null,null,null,null,null,null,null,null,null,null,null,null,null,null,null,null,null,null,null,null,null,null,null,null,"Kampen","Kampen",1]
["",null,null,null,null,null,null,null,null,null,null,null,null,null,null,null,null,null,null,null,null,null,null,null,null,"Kampen","Kampen",1]
["",null,null,null,null,null,null,null,null,null,null,null,null,null,null,null,null,null,null,null,null,null,null,null,null,"Kampen","Kampen",1]
[""]
[""]
[""]
[""]
[""]
[""]
[""]
[""]
[""]
[""]
[""]
[""]
[""]
[""]
[""]
[""]
[""]
[""]
[""]
[""]
[""]
[""]
[""]
[""]
[""]
[""]
[""]
[""]
[""]
[""]
[""]
[""]
[""]
[""]
[""]
[""]
[""]
[""]
[""]
[""]
[""]
[""]
[""]
[""]
[""]
[""]
[""]
[""]
[""]
[""]

{"sheet":"Jeugd","index":8,"n_rows":67,"n_cols":29,"rows_kept":67,"cut":false,"hidden":false,"merged":[[0,1,0,23],[4,4,4,8],[1,1,1,23]]}
[null,{"$f":"Inv.!$B$1","v":"1e Open  \"Kruisboog op wip\" 2023"}]
[null,{"$f":"Inv.!$B$2","v":"8 April bij het St. Anthonius/St. Nicolaasgilde in Groeningen"}]
[]
[]
[null,"Jeugd",null,{"$f":"MAX(A8:A67)","v":0},{"$f":"IF(D5=1,\"deelnemer\",\"deelnemers\")","v":"deelnemers"}]
[]
[null,"Naam","Plaats","Totaal",1,2,3,4,5,6,7,8,9,10,11,12,13,14,15,16,17,18,19,20,"Kampen"]
[{"$f":"IF(D8>0,A7+1,\"\")","v":""},null,null,null,null,null,null,null,null,null,null,null,null,null,null,null,null,null,null,null,null,null,null,null,null,{"$f":"IF(Y8=\"\",AA8,\"\")","v":"Kampen"},{"$f":"IF(SUM(AB8:AC8)>0,\"Kampen\",\"\")","v":"Kampen"},{"$f":"IF(D8=D9,1,\"\")","v":1}]
[{"$f":"IF(D9>0,A8+1,\"\")","v":""},null,null,null,null,null,null,null,null,null,null,null,null,null,null,null,null,null,null,null,null,null,null,null,null,"Kampen",{"$f":"IF(SUM(AB9:AC9)>0,\"Kampen\",\"\")","v":"Kampen"},{"$f":"IF(D9=D8,1,\"\")","v":1},{"$f":"IF(D9=D10,1,\"\")","v":1}]
["",null,null,null,null,null,null,null,null,null,null,null,null,null,null,null,null,null,null,null,null,null,null,null,null,"Kampen","Kampen",{"$f":"IF(D10=D9,1,\"\")","v":1},{"$f":"IF(D10=D11,1,\"\")","v":1}]
["",null,null,null,null,null,null,null,null,null,null,null,null,null,null,null,null,null,null,null,null,null,null,null,null,"Kampen","Kampen",{"$f":"IF(D11=D$10,1,\"\")","v":1}]
["",null,null,null,null,null,null,null,null,null,null,null,null,null,null,null,null,null,null,null,null,null,null,null,null,"Kampen","Kampen",{"$f":"IF(D12=D$10,1,\"\")","v":1}]
["",null,null,null,null,null,null,null,null,null,null,null,null,null,null,null,null,null,null,null,null,null,null,null,null,"Kampen","Kampen",1]
["",null,null,null,null,null,null,null,null,null,null,null,null,null,null,null,null,null,null,null,null,null,null,null,null,"Kampen","Kampen",1]
["",null,null,null,null,null,null,null,null,null,null,null,null,null,null,null,null,null,null,null,null,null,null,null,null,"Kampen","Kampen",1]
["",null,null,null,null,null,null,null,null,null,null,null,null,null,null,null,null,null,null,null,null,null,null,null,null,"Kampen","Kampen",1]
["",null,null,null,null,null,null,null,null,null,null,null,null,null,null,null,null,null,null,null,null,null,null,null,null,"Kampen","Kampen",1]
[""]
[""]
[""]
[""]
[""]
[""]
[""]
[""]
[""]
[""]
[""]
[""]
[""]
[""]
[""]
[""]
[""]
[""]
[""]
[""]
[""]
[""]
[""]
[""]
[""]
[""]
[""]
[""]
[""]
[""]
[""]
[""]
[""]
[""]
[""]
[""]
[""]
[""]
[""]
[""]
[""]
[""]
[""]
[""]
[""]
[""]
[""]
[""]
[""]
[""]

{"sheet":"KORPSEN","index":9,"n_rows":67,"n_cols":31,"rows_kept":67,"cut":false,"hidden":false,"merged":[[0,1,0,23],[5,3,5,7],[6,3,6,8],[6,21,6,24],[6,16,6,19],[6,11,6,14],[1,1,1,23]]}
[null,{"$f":"Inv.!$B$1","v":"1e Open  \"Kruisboog op wip\" 2023"}]
[null,{"$f":"Inv.!$B$2","v":"8 April bij het St. Anthonius/St. Nicolaasgilde in Groeningen"}]
[]
[]
[]
[null,"Korpsen",{"$f":"COUNTIF(AA9:AA54,\"=4\")","v":4},{"$f":"IF(C6=1,\"compleet korps\",\"complete korpsen\")","v":"complete korpsen"}]
[null,null,{"$f":"COUNT(D9:D54)-C6","v":5},"niet complete korpsen",null,null,null,null,null,"(",{"$f":"COUNTIF(AA9:AA54,\"=3\")","v":1},"met 3 schutters",null,null,null,{"$f":"COUNTIF(AA9:AA54,\"=2\")","v":0},"met 2 schutters",null,null,null,{"$f":"COUNTIF(AA9:AA54,\"=1\")","v":4},"met 1 schutter )"]
[{"$f":"IF(D8>0,A7+1,\"\")","v":""},"Vereniging","Plaats","Totaal",1,2,3,4,5,6,7,8,9,10,11,12,13,14,15,16,17,18,19,20,"Kampen",null,"AS",null,null,{"$f":"IF(D8=D9,1,\"\")","v":""}]
[{"$f":"IF(D9>0,A8+1,\"\")","v":1},"St. Anthonius - St. Nicolaasgilde 1","Groeningen",{"$f":"IF(SUM(E9:X9)>0,SUM(E9:X9),\"\")","v":71},4,3,4,4,3,4,4,4,3,4,4,3,4,4,3,4,3,2,4,3,null,null,4,{"$f":"IF(Y9=\"\",AC9,\"\")","v":""},{"$f":"IF(SUM(AD9:AE9)>0,\"Kampen\",\"\")","v":""},{"$f":"IF(D9=D8,1,\"\")","v":""},{"$f":"IF(D9=D10,1,\"\")","v":""}]
[2,"St. Matthiasgilde 1","Oploo",50,3,2,2,2,4,4,2,1,3,3,3,3,2,2,1,3,3,4,1,2,null,null,4,"","",{"$f":"IF(D10=D9,1,\"\")","v":""},{"$f":"IF(D10=D11,1,\"\")","v":""}]
[3,"St. Dionysiusgilde 1","Heijen",45,3,2,1,3,3,2,2,3,2,3,3,3,3,4,1,2,2,2,1,0,null,null,4,"","",{"$f":"IF(D11=D$10,1,\"\")","v":""},{"$f":"IF(D11=D$12,1,\"\")","v":""}]
[4,"St. Antoniusgilde 1","St. Anthonis",41,3,2,1,1,2,3,4,2,1,2,2,3,1,2,3,1,1,1,4,2,null,null,4,"","",{"$f":"IF(D12=D$11,1,\"\")","v":""},{"$f":"IF(D12=D$13,1,\"\")","v":""}]
[5,"St. Agathagilde 1","Boekel",40,3,3,1,1,2,3,2,2,3,1,2,2,2,3,3,2,2,2,1,0,null,null,3,"","","",{"$f":"IF(D13=D$12,1,\"\")","v":""}]
[6,"St. Theobaldusgilde 1","Overloon",18,1,1,1,1,1,1,1,1,1,1,1,1,1,1,0,1,1,1,0,1,null,null,1,"","","",""]
[7,"Salvator Mundi 1","Oeffelt",15,0,1,1,1,1,1,0,1,1,1,1,1,0,0,1,1,1,0,1,1,null,null,1,"","","",""]
[8,"St. Anthonius - St. Nicolaasgilde 2","Groeningen",13,1,1,1,1,0,0,0,1,0,1,1,1,0,1,1,1,0,0,1,1,null,null,1,{"$f":"IF(Y16=\"\",AC16,\"\")","v":""},{"$f":"IF(SUM(AD16:AE16)>0,\"Kampen\",\"\")","v":""},"",""]
[9,"K.V. Fortuna 1","Zeeland",10,1,1,1,1,0,1,1,1,0,0,1,1,0,0,1,0,0,0,0,0,null,null,1,{"$f":"IF(Y17=\"\",AC17,\"\")","v":""},{"$f":"IF(SUM(AD17:AE17)>0,\"Kampen\",\"\")","v":""},"",""]
["","","","","","","","","","","","","","","","","","","","","","","","",null,null,0,{"$f":"IF(Y18=\"\",AC18,\"\")","v":""},{"$f":"IF(SUM(AD18:AE18)>0,\"Kampen\",\"\")","v":""},"",""]
["","","","","","","","","","","","","","","","","","","","","","","","",null,null,0]
["","","","","","","","","","","","","","","","","","","","","","","","",null,null,0]
["","","","","","","","","","","","","","","","","","","","","","","","",null,null,0]
["","","","","","","","","","","","","","","","","","","","","","","","",null,null,0]
["","","","","","","","","","","","","","","","","","","","","","","","",null,null,0]
["","","","","","","","","","","","","","","","","","","","","","","","",null,null,0]
["","","","","","","","","","","","","","","","","","","","","","","","",null,null,0]
["","","","","","","","","","","","","","","","","","","","","","","","",null,null,0]
["","","","","","","","","","","","","","","","","","","","","","","","",null,null,0]
["","","","","","","","","","","","","","","","","","","","","","","","",null,null,0]
["","","","","","","","","","","","","","","","","","","","","","","","",null,null,0]
["","","","","","","","","","","","","","","","","","","","","","","","",null,null,0]
["","","","","","","","","","","","","","","","","","","","","","","","",null,null,0]
["","","","","","","","","","","","","","","","","","","","","","","","",null,null,0]
["","","","","","","","","","","","","","","","","","","","","","","","",null,null,0]
["","","","","","","","","","","","","","","","","","","","","","","","",null,null,0]
["","","","","","","","","","","","","","","","","","","","","","","","",null,null,0]
["","","","","","","","","","","","","","","","","","","","","","","","",null,null,0]
["","","","","","","","","","","","","","","","","","","","","","","","",null,null,0]
["","","","","","","","","","","","","","","","","","","","","","","","",null,null,0]
["","","","","","","","","","","","","","","","","","","","","","","","",null,null,0]
["","","","","","","","","","","","","","","","","","","","","","","","",null,null,0]
["","","","","","","","","","","","","","","","","","","","","","","","",null,null,0]
["","","","","","","","","","","","","","","","","","","","","","","","",null,null,0]
["","","","","","","","","","","","","","","","","","","","","","","","",null,null,0]
["","","","","","","","","","","","","","","","","","","","","","","","",null,null,0]
["","","","","","","","","","","","","","","","","","","","","","","","",null,null,0]
["","","","","","","","","","","","","","","","","","","","","","","","",null,null,0]
["","","","","","","","","","","","","","","","","","","","","","","","",null,null,0]
["","","","","","","","","","","","","","","","","","","","","","","","",null,null,0]
["","","","","","","","","","","","","","","","","","","","","","","","",null,null,0]
["","","","","","","","","","","","","","","","","","","","","","","","",null,null,0]
["","","","","","","","","","","","","","","","","","","","","","","","",null,null,0]
["","","","","","","","","","","","","","","","","","","","","","","","",null,null,0]
["","","","","","","","","","","","","","","","","","","","","","","","",null,null,0]
["","","","","","","","","","","","","","","","","","","","","","","","",null,null,0]
[""]
[""]
[""]
[""]
[""]
[""]
[""]
[""]
[""]
[""]
[""]
[""]
[""]

{"sheet":"OPLOO","index":10,"n_rows":28,"n_cols":27,"rows_kept":28,"cut":false,"hidden":false,"merged":[[1,1,1,16],[0,1,0,23]]}
[null,{"$f":"Inv.!$B$1","v":"1e Open  \"Kruisboog op wip\" 2023"}]
[null,{"$f":"Inv.!$B$2","v":"8 April bij het St. Anthonius/St. Nicolaasgilde in Groeningen"}]
[]
[null,"Mandaat","St. Matthiasgilde Oploo"]
[]
[]
[null,"Naam","Klasse","Totaal",1,2,3,4,5,6,7,8,9,10,11,12,13,14,15,16,17,18,19,20,"Kampen",null,"AS"]
[1,"Theo Heijligers","A",16,1,1,0,0,1,1,1,0,1,1,1,1,1,1,1,1,0,1,1,1,null,null,{"$f":"IF(D8>0,1,0)","v":1}]
[2,"Theo Sommers","A",14,1,0,1,1,1,1,1,1,1,1,0,1,0,1,0,1,1,1,0,0,null,null,{"$f":"IF(D9>0,1,0)","v":1}]
[3,"Gerrit Ermers","A",12,1,1,1,1,1,1,0,0,1,0,1,1,0,0,0,1,1,1,0,0,null,null,1]
[4,"Riny v.d. Bungelaar","A",8,0,0,0,0,1,1,0,0,0,1,1,0,1,0,0,0,1,1,0,1,null,null,1]
[5,"Jan van Sambeek","A",0,null,null,null,null,null,null,null,null,null,null,null,null,null,null,null,null,null,null,null,null,null,null,0]
[6,"Ronnie Sommers","A",0,null,null,null,null,null,null,null,null,null,null,null,null,null,null,null,null,null,null,null,null,null,null,0]
[7,null,null,null,null,null,null,null,null,null,null,null,null,null,null,null,null,null,null,null,null,null,null,null,null,null,0]
[8,null,null,null,null,null,null,null,null,null,null,null,null,null,null,null,null,null,null,null,null,null,null,null,null,null,0]
[9,null,null,null,null,null,null,null,null,null,null,null,null,null,null,null,null,null,null,null,null,null,null,null,null,null,0]
[10,null,null,null,null,null,null,null,null,null,null,null,null,null,null,null,null,null,null,null,null,null,null,null,null,null,0]
[11,null,null,null,null,null,null,null,null,null,null,null,null,null,null,null,null,null,null,null,null,null,null,null,null,null,0]
[12,null,null,null,null,null,null,null,null,null,null,null,null,null,null,null,null,null,null,null,null,null,null,null,null,null,0]
[]
[]
[]
[]
[]
[null,"Vereniging","Plaats","Totaal",1,2,3,4,5,6,7,8,9,10,11,12,13,14,15,16,17,18,19,20,"Kampen",null,"AS"]
[1,{"$f":"IF(D26>0,\"St. Matthiasgilde 1\",\"\")","v":"St. Matthiasgilde 1"},{"$f":"IF(D26>0,\"Oploo\",\"\")","v":"Oploo"},{"$f":"IF(SUM(D8:D11)>0,SUM(D8:D11),\"\")","v":50},{"$f":"IF($D$26>0,SUM(E8:E11),\"\")","v":3},{"$f":"IF($D$26>0,SUM(F8:F11),\"\")","v":2},2,2,4,4,2,1,3,3,3,3,2,2,1,3,3,4,1,2,null,null,{"$f":"SUM(AA8:AA11)","v":4}]
[2,{"$f":"IF(D27>0,\"St. Matthiasgilde 2\",\"\")","v":""},{"$f":"IF(D27>0,\"Oploo\",\"\")","v":""},{"$f":"IF(SUM(D12:D15)>0,SUM(D12:D15),\"\")","v":""},{"$f":"IF($D$27>0,SUM(E12:E15),\"\")","v":""},{"$f":"IF($D$27>0,SUM(F12:F15),\"\")","v":""},"","","","","","","","","","","","","","","","","","",null,null,{"$f":"SUM(AA12:AA15)","v":0}]
[3,{"$f":"IF(D28>0,\"St. Matthiasgilde 3\",\"\")","v":""},{"$f":"IF(D28>0,\"Oploo\",\"\")","v":""},{"$f":"IF(SUM(D16:D19)>0,SUM(D16:D19),\"\")","v":""},{"$f":"IF($D$28>0,SUM(E16:E19),\"\")","v":""},{"$f":"IF($D$28>0,SUM(F16:F19),\"\")","v":""},"","","","","","","","","","","","","","","","","","",null,null,{"$f":"SUM(AA16:AA19)","v":0}]

{"sheet":"OVERLOON","index":11,"n_rows":28,"n_cols":27,"rows_kept":28,"cut":false,"hidden":false,"merged":[[1,1,1,16],[0,1,0,23]]}
[null,{"$f":"Inv.!$B$1","v":"1e Open  \"Kruisboog op wip\" 2023"}]
[null,{"$f":"Inv.!$B$2","v":"8 April bij het St. Anthonius/St. Nicolaasgilde in Groeningen"}]
[]
[null,"Mandaat","St. Theobaldusgilde Overloon"]
[]
[]
[null,"Naam","Klasse","Totaal",1,2,3,4,5,6,7,8,9,10,11,12,13,14,15,16,17,18,19,20,"Kampen",null,"AS"]
[1,"Geert Arts","Ere",18,1,1,1,1,1,1,1,1,1,1,1,1,1,1,0,1,1,1,0,1,null,null,{"$f":"IF(D8>0,1,0)","v":1}]
[2,null,null,null,null,null,null,null,null,null,null,null,null,null,null,null,null,null,null,null,null,null,null,null,null,null,{"$f":"IF(D9>0,1,0)","v":0}]
[3,null,null,null,null,null,null,null,null,null,null,null,null,null,null,null,null,null,null,null,null,null,null,null,null,null,0]
[4,null,null,null,null,null,null,null,null,null,null,null,null,null,null,null,null,null,null,null,null,null,null,null,null,null,0]
[5,null,null,null,null,null,null,null,null,null,null,null,null,null,null,null,null,null,null,null,null,null,null,null,null,null,0]
[6,null,null,null,null,null,null,null,null,null,null,null,null,null,null,null,null,null,null,null,null,null,null,null,null,null,0]
[7,null,null,null,null,null,null,null,null,null,null,null,null,null,null,null,null,null,null,null,null,null,null,null,null,null,0]
[8,null,null,null,null,null,null,null,null,null,null,null,null,null,null,null,null,null,null,null,null,null,null,null,null,null,0]
[9,null,null,null,null,null,null,null,null,null,null,null,null,null,null,null,null,null,null,null,null,null,null,null,null,null,0]
[10,null,null,null,null,null,null,null,null,null,null,null,null,null,null,null,null,null,null,null,null,null,null,null,null,null,0]
[11,null,null,null,null,null,null,null,null,null,null,null,null,null,null,null,null,null,null,null,null,null,null,null,null,null,0]
[12,null,null,null,null,null,null,null,null,null,null,null,null,null,null,null,null,null,null,null,null,null,null,null,null,null,0]
[]
[]
[]
[]
[]
[null,"Vereniging","Plaats","Totaal",1,2,3,4,5,6,7,8,9,10,11,12,13,14,15,16,17,18,19,20,"Kampen",null,"AS"]
[1,{"$f":"IF(D26>0,\"St. Theobaldusgilde 1\",\"\")","v":"St. Theobaldusgilde 1"},{"$f":"IF(D26>0,\"Overloon\",\"\")","v":"Overloon"},{"$f":"IF(SUM(D8:D11)>0,SUM(D8:D11),\"\")","v":18},{"$f":"IF($D$26>0,SUM(E8:E11),\"\")","v":1},{"$f":"IF($D$26>0,SUM(F8:F11),\"\")","v":1},1,1,1,1,1,1,1,1,1,1,1,1,0,1,1,1,0,1,null,null,{"$f":"SUM(AA8:AA11)","v":1}]
[2,{"$f":"IF(D27>0,\"St. Theobaldusgilde 2\",\"\")","v":""},{"$f":"IF(D27>0,\"Overloon\",\"\")","v":""},{"$f":"IF(SUM(D12:D15)>0,SUM(D12:D15),\"\")","v":""},{"$f":"IF($D$27>0,SUM(E12:E15),\"\")","v":""},"","","","","","","","","","","","","","","","","","","",null,null,{"$f":"SUM(AA12:AA15)","v":0}]
[3,{"$f":"IF(D28>0,\"St. Theobaldusgilde 3\",\"\")","v":""},"",{"$f":"IF(SUM(D16:D19)>0,SUM(D16:D19),\"\")","v":""},{"$f":"IF($D$28>0,SUM(E16:E19),\"\")","v":""},{"$f":"IF($D$28>0,SUM(F16:F19),\"\")","v":""},"","","","","","","","","","","","","","","","","","",null,null,{"$f":"SUM(AA16:AA19)","v":0}]

{"sheet":"BOEKEL","index":12,"n_rows":28,"n_cols":27,"rows_kept":28,"cut":false,"hidden":false,"merged":[[1,1,1,16],[0,1,0,23]]}
[null,{"$f":"Inv.!$B$1","v":"1e Open  \"Kruisboog op wip\" 2023"}]
[null,{"$f":"Inv.!$B$2","v":"8 April bij het St. Anthonius/St. Nicolaasgilde in Groeningen"}]
[]
[null,"Mandaat","St. Agathagilde Boekel"]
[]
[]
[null,"Naam","Klasse","Totaal",1,2,3,4,5,6,7,8,9,10,11,12,13,14,15,16,17,18,19,20,"Kampen",null,"AS"]
[1,"Gerrit Janssen","A",15,1,1,0,0,1,1,1,1,1,0,1,1,1,1,1,1,1,0,1,0,"10",null,{"$f":"IF(D8>0,1,0)","v":1}]
[2,"Jo Vluggen","B",14,1,1,1,0,1,1,0,0,1,0,1,1,1,1,1,1,1,1,0,0,null,null,{"$f":"IF(D9>0,1,0)","v":1}]
[3,"Maria Janssen","A",11,1,1,0,1,0,1,1,1,1,1,0,0,0,1,1,0,0,1,0,0,null,null,1]
[4,"Arie v/d Kimmenade","A",0,null,null,null,null,null,null,null,null,null,null,null,null,null,null,null,null,null,null,null,null,null,null,0]
[5,"Frits Koolen","A",0,null,null,null,null,null,null,null,null,null,null,null,null,null,null,null,null,null,null,null,null,null,null,0]
[6,"Jan Leenders","A",0,null,null,null,null,null,null,null,null,null,null,null,null,null,null,null,null,null,null,null,null,null,null,0]
[7,"Jan Manders","Ere",0,null,null,null,null,null,null,null,null,null,null,null,null,null,null,null,null,null,null,null,null,null,null,0]
[8,"Jan Weren","A",0,null,null,null,null,null,null,null,null,null,null,null,null,null,null,null,null,null,null,null,null,null,null,0]
[9,"Thijs Sanders","B",0,null,null,null,null,null,null,null,null,null,null,null,null,null,null,null,null,null,null,null,null,null,null,0]
[10,null,null,null,null,null,null,null,null,null,null,null,null,null,null,null,null,null,null,null,null,null,null,null,null,null,0]
[11,null,null,null,null,null,null,null,null,null,null,null,null,null,null,null,null,null,null,null,null,null,null,null,null,null,0]
[12,null,null,null,null,null,null,null,null,null,null,null,null,null,null,null,null,null,null,null,null,null,null,null,null,null,0]
[]
[]
[]
[]
[]
[null,"Vereniging","Plaats","Totaal",1,2,3,4,5,6,7,8,9,10,11,12,13,14,15,16,17,18,19,20,"Kampen",null,"AS"]
[1,{"$f":"IF(D26>0,\"St. Agathagilde 1\",\"\")","v":"St. Agathagilde 1"},{"$f":"IF(D26>0,\"Boekel\",\"\")","v":"Boekel"},{"$f":"IF(SUM(D8:D11)>0,SUM(D8:D11),\"\")","v":40},{"$f":"IF($D$26>0,SUM(E8:E11),\"\")","v":3},{"$f":"IF($D$26>0,SUM(F8:F11),\"\")","v":3},1,1,2,3,2,2,3,1,2,2,2,3,3,2,2,2,1,0,null,null,{"$f":"SUM(AA8:AA11)","v":3}]
[2,{"$f":"IF(D27>0,\"St. Agathagilde 2\",\"\")","v":""},{"$f":"IF(D27>0,\"Boekel\",\"\")","v":""},{"$f":"IF(SUM(D12:D15)>0,SUM(D12:D15),\"\")","v":""},{"$f":"IF($D$27>0,SUM(E12:E15),\"\")","v":""},{"$f":"IF($D$27>0,SUM(F12:F15),\"\")","v":""},"","","","","","","","","","","","","","","","","","",null,null,{"$f":"SUM(AA12:AA15)","v":0}]
[3,{"$f":"IF(D28>0,\"St. Agathagilde 3\",\"\")","v":""},"",{"$f":"IF(SUM(D16:D19)>0,SUM(D16:D19),\"\")","v":""},{"$f":"IF($D$28>0,SUM(E16:E19),\"\")","v":""},{"$f":"IF($D$28>0,SUM(F16:F19),\"\")","v":""},"","","","","","","","","","","","","","","","","","",null,null,{"$f":"SUM(AA16:AA19)","v":0}]

{"sheet":"HEIJEN","index":13,"n_rows":28,"n_cols":27,"rows_kept":28,"cut":false,"hidden":false,"merged":[[1,1,1,16],[0,1,0,23]]}
[null,{"$f":"Inv.!$B$1","v":"1e Open  \"Kruisboog op wip\" 2023"}]
[null,{"$f":"Inv.!$B$2","v":"8 April bij het St. Anthonius/St. Nicolaasgilde in Groeningen"}]
[]
[null,"Mandaat","St. Dionysiusgilde Heijen"]
[]
[]
[null,"Naam","Klasse","Totaal",1,2,3,4,5,6,7,8,9,10,11,12,13,14,15,16,17,18,19,20,"Kampen",null,"AS"]
[1,"Martijn Graat","Ere",18,1,1,1,1,1,1,1,1,1,1,1,1,1,1,1,1,1,0,1,0,null,null,{"$f":"IF(D8>0,1,0)","v":1}]
[2,"Jos Graat","A",12,1,1,0,1,1,1,0,1,1,1,0,1,1,1,0,0,0,1,0,0,null,null,{"$f":"IF(D9>0,1,0)","v":1}]
[3,"Markus Katalowski","A",11,1,0,0,1,1,0,0,1,0,1,1,1,1,1,0,0,1,1,0,0,null,null,1]
[4,"Antoon Graat","B",4,0,0,0,0,0,0,1,0,0,0,1,0,0,1,0,1,0,0,0,0,null,null,1]
[5,"Gerrit Behet","A",0,null,null,null,null,null,null,null,null,null,null,null,null,null,null,null,null,null,null,null,null,null,null,0]
[6,null,null,null,null,null,null,null,null,null,null,null,null,null,null,null,null,null,null,null,null,null,null,null,null,null,0]
[7,null,null,null,null,null,null,null,null,null,null,null,null,null,null,null,null,null,null,null,null,null,null,null,null,null,0]
[8,null,null,null,null,null,null,null,null,null,null,null,null,null,null,null,null,null,null,null,null,null,null,null,null,null,0]
[9,null,null,null,null,null,null,null,null,null,null,null,null,null,null,null,null,null,null,null,null,null,null,null,null,null,0]
[10,null,null,null,null,null,null,null,null,null,null,null,null,null,null,null,null,null,null,null,null,null,null,null,null,null,0]
[11,null,null,null,null,null,null,null,null,null,null,null,null,null,null,null,null,null,null,null,null,null,null,null,null,null,0]
[12,null,null,null,null,null,null,null,null,null,null,null,null,null,null,null,null,null,null,null,null,null,null,null,null,null,0]
[]
[]
[]
[]
[]
[null,"Vereniging","Plaats","Totaal",1,2,3,4,5,6,7,8,9,10,11,12,13,14,15,16,17,18,19,20,"Kampen",null,"AS"]
[1,{"$f":"IF(D26>0,\"St. Dionysiusgilde 1\",\"\")","v":"St. Dionysiusgilde 1"},{"$f":"IF(D26>0,\"Heijen\",\"\")","v":"Heijen"},{"$f":"IF(SUM(D8:D11)>0,SUM(D8:D11),\"\")","v":45},{"$f":"IF($D$26>0,SUM(E8:E11),\"\")","v":3},{"$f":"IF($D$26>0,SUM(F8:F11),\"\")","v":2},1,3,3,2,2,3,2,3,3,3,3,4,1,2,2,2,1,0,null,null,{"$f":"SUM(AA8:AA11)","v":4}]
[2,{"$f":"IF(D27>0,\"St. Dionysiusgilde 2\",\"\")","v":""},{"$f":"IF(D27>0,\"Heijen\",\"\")","v":""},{"$f":"IF(SUM(D12:D15)>0,SUM(D12:D15),\"\")","v":""},{"$f":"IF($D$27>0,SUM(E12:E15),\"\")","v":""},{"$f":"IF($D$27>0,SUM(F12:F15),\"\")","v":""},"","","","","","","","","","","","","","","","","","",null,null,{"$f":"SUM(AA12:AA15)","v":0}]
[3,{"$f":"IF(D28>0,\"St. Dionysiusgilde 3\",\"\")","v":""},"",{"$f":"IF(SUM(D16:D19)>0,SUM(D16:D19),\"\")","v":""},{"$f":"IF($D$28>0,SUM(E16:E19),\"\")","v":""},{"$f":"IF($D$28>0,SUM(F16:F19),\"\")","v":""},"","","","","","","","","","","","","","","","","","",null,null,{"$f":"SUM(AA16:AA19)","v":0}]

{"sheet":"BEUGEN","index":14,"n_rows":28,"n_cols":27,"rows_kept":28,"cut":false,"hidden":false,"merged":[[1,1,1,16],[0,1,0,23]]}
[null,{"$f":"Inv.!$B$1","v":"1e Open  \"Kruisboog op wip\" 2023"}]
[null,{"$f":"Inv.!$B$2","v":"8 April bij het St. Anthonius/St. Nicolaasgilde in Groeningen"}]
[]
[null,"Mandaat","Schuttersgilde Beugen "]
[]
[]
[null,"Naam","Klasse","Totaal",1,2,3,4,5,6,7,8,9,10,11,12,13,14,15,16,17,18,19,20,"Kampen",null,"AS"]
[1,"Marcel Dekkers","B",0,null,null,null,null,null,null,null,null,null,null,null,null,null,null,null,null,null,null,null,null,null,null,{"$f":"IF(D8>0,1,0)","v":0}]
[2,"Marius Franssen","Ere",0,null,null,null,null,null,null,null,null,null,null,null,null,null,null,null,null,null,null,null,null,null,null,{"$f":"IF(D9>0,1,0)","v":0}]
[3,"Sjaak Verrijdt","B",0,null,null,null,null,null,null,null,null,null,null,null,null,null,null,null,null,null,null,null,null,null,null,0]
[4,"Theo Groothusen","A",0,null,null,null,null,null,null,null,null,null,null,null,null,null,null,null,null,null,null,null,null,null,null,0]
[5,null,null,null,null,null,null,null,null,null,null,null,null,null,null,null,null,null,null,null,null,null,null,null,null,null,0]
[6,null,null,null,null,null,null,null,null,null,null,null,null,null,null,null,null,null,null,null,null,null,null,null,null,null,0]
[7,null,null,null,null,null,null,null,null,null,null,null,null,null,null,null,null,null,null,null,null,null,null,null,null,null,0]
[8,null,null,null,null,null,null,null,null,null,null,null,null,null,null,null,null,null,null,null,null,null,null,null,null,null,0]
[9,null,null,null,null,null,null,null,null,null,null,null,null,null,null,null,null,null,null,null,null,null,null,null,null,null,0]
[10,null,null,null,null,null,null,null,null,null,null,null,null,null,null,null,null,null,null,null,null,null,null,null,null,null,0]
[11,null,null,null,null,null,null,null,null,null,null,null,null,null,null,null,null,null,null,null,null,null,null,null,null,null,0]
[12,null,null,null,null,null,null,null,null,null,null,null,null,null,null,null,null,null,null,null,null,null,null,null,null,null,0]
[]
[]
[]
[]
[]
[null,"Vereniging","Plaats","Totaal",1,2,3,4,5,6,7,8,9,10,11,12,13,14,15,16,17,18,19,20,"Kampen",null,"AS"]
[1,{"$f":"IF(D26>0,\"Schuttersgilde 1\",\"\")","v":""},{"$f":"IF(D26>0,\"Beugen\",\"\")","v":""},{"$f":"IF(SUM(D8:D11)>0,SUM(D8:D11),\"\")","v":""},{"$f":"IF($D$26>0,SUM(E8:E11),\"\")","v":""},{"$f":"IF($D$26>0,SUM(F8:F11),\"\")","v":""},"","","","","","","","","","","","","","","","","","",null,null,{"$f":"SUM(AA8:AA11)","v":0}]
[2,{"$f":"IF(D27>0,\"Schuttersgilde 2\",\"\")","v":""},{"$f":"IF(D27>0,\"Beugen\",\"\")","v":""},{"$f":"IF(SUM(D12:D15)>0,SUM(D12:D15),\"\")","v":""},{"$f":"IF($D$27>0,SUM(E12:E15),\"\")","v":""},{"$f":"IF($D$27>0,SUM(F12:F15),\"\")","v":""},"","","","","","","","","","","","","","","","","","",null,null,{"$f":"SUM(AA12:AA15)","v":0}]
[3,{"$f":"IF(D28>0,\"Schuttersgilde 3\",\"\")","v":""},{"$f":"IF(D28>0,\"Beugen\",\"\")","v":""},{"$f":"IF(SUM(D16:D19)>0,SUM(D16:D19),\"\")","v":""},{"$f":"IF($D$28>0,SUM(E16:E19),\"\")","v":""},{"$f":"IF($D$28>0,SUM(F16:F19),\"\")","v":""},"","","","","","","","","","","","","","","","","","",null,null,{"$f":"SUM(AA16:AA19)","v":0}]

{"sheet":"HEI EN BOEICOP","index":15,"n_rows":28,"n_cols":27,"rows_kept":28,"cut":false,"hidden":false,"merged":[[1,1,1,16],[3,2,3,25],[0,1,0,23]]}
[null,{"$f":"Inv.!$B$1","v":"1e Open  \"Kruisboog op wip\" 2023"}]
[null,{"$f":"Inv.!$B$2","v":"8 April bij het St. Anthonius/St. Nicolaasgilde in Groeningen"}]
[]
[null,"Mandaat","St. Martinus - St. Antoniusgilde Lexmond en Hei- en Boeicop"]
[]
[]
[null,"Naam","Klasse","Totaal",1,2,3,4,5,6,7,8,9,10,11,12,13,14,15,16,17,18,19,20,"Kampen",null,"AS"]
[1,"Dik de Vor","A",0,null,null,null,null,null,null,null,null,null,null,null,null,null,null,null,null,null,null,null,null,null,null,{"$f":"IF(D8>0,1,0)","v":0}]
[2,"Fons Brand","A",0,null,null,null,null,null,null,null,null,null,null,null,null,null,null,null,null,null,null,null,null,null,null,{"$f":"IF(D9>0,1,0)","v":0}]
[3,"Gratia Brand","Ere",0,null,null,null,null,null,null,null,null,null,null,null,null,null,null,null,null,null,null,null,null,null,null,0]
[4,"Leo v. Heumen","A",0,null,null,null,null,null,null,null,null,null,null,null,null,null,null,null,null,null,null,null,null,null,null,0]
[5,"Walter Huisman","Ere",0,null,null,null,null,null,null,null,null,null,null,null,null,null,null,null,null,null,null,null,null,null,null,0]
[6,null,null,null,null,null,null,null,null,null,null,null,null,null,null,null,null,null,null,null,null,null,null,null,null,null,0]
[7,null,null,null,null,null,null,null,null,null,null,null,null,null,null,null,null,null,null,null,null,null,null,null,null,null,0]
[8,null,null,null,null,null,null,null,null,null,null,null,null,null,null,null,null,null,null,null,null,null,null,null,null,null,0]
[9,null,null,null,null,null,null,null,null,null,null,null,null,null,null,null,null,null,null,null,null,null,null,null,null,null,0]
[10,null,null,null,null,null,null,null,null,null,null,null,null,null,null,null,null,null,null,null,null,null,null,null,null,null,0]
[11,null,null,null,null,null,null,null,null,null,null,null,null,null,null,null,null,null,null,null,null,null,null,null,null,null,0]
[12,null,null,null,null,null,null,null,null,null,null,null,null,null,null,null,null,null,null,null,null,null,null,null,null,null,0]
[]
[]
[]
[]
[]
[null,"Vereniging","Plaats","Totaal",1,2,3,4,5,6,7,8,9,10,11,12,13,14,15,16,17,18,19,20,"Kampen",null,"AS"]
[1,{"$f":"IF(D26>0,\"St. Martinus - St. Antoniusgilde 1\",\"\")","v":""},{"$f":"IF(D26>0,\"Hei- en Boeicop\",\"\")","v":""},{"$f":"IF(SUM(D8:D11)>0,SUM(D8:D11),\"\")","v":""},{"$f":"IF($D$26>0,SUM(E8:E11),\"\")","v":""},{"$f":"IF($D$26>0,SUM(F8:F11),\"\")","v":""},"","","","","","","","","","","","","","","","","","",null,null,{"$f":"SUM(AA8:AA11)","v":0}]
[2,{"$f":"IF(D27>0,\"St. Martinus - St. Antoniusgilde 2\",\"\")","v":""},{"$f":"IF(D27>0,\"Hei- en Boeicop\",\"\")","v":""},{"$f":"IF(SUM(D12:D15)>0,SUM(D12:D15),\"\")","v":""},{"$f":"IF($D$27>0,SUM(E12:E15),\"\")","v":""},{"$f":"IF($D$27>0,SUM(F12:F15),\"\")","v":""},"","","","","","","","","","","","","","","","","","",null,null,{"$f":"SUM(AA12:AA15)","v":0}]
[3,{"$f":"IF(D28>0,\"St. Martinus - St. Antoniusgilde 3\",\"\")","v":""},"",{"$f":"IF(SUM(D16:D19)>0,SUM(D16:D19),\"\")","v":""},{"$f":"IF($D$28>0,SUM(E16:E19),\"\")","v":""},{"$f":"IF($D$28>0,SUM(F16:F19),\"\")","v":""},"","","","","","","","","","","","","","","","","","",null,null,{"$f":"SUM(AA16:AA19)","v":0}]

{"sheet":"ST. ANTHONIS","index":16,"n_rows":28,"n_cols":27,"rows_kept":28,"cut":false,"hidden":false,"merged":[[1,1,1,16],[0,1,0,23]]}
[null,{"$f":"Inv.!$B$1","v":"1e Open  \"Kruisboog op wip\" 2023"}]
[null,{"$f":"Inv.!$B$2","v":"8 April bij het St. Anthonius/St. Nicolaasgilde in Groeningen"}]
[]
[null,"Mandaat","St. Antoniusgilde St. Anthonis"]
[]
[]
[null,"Naam","Klasse","Totaal",1,2,3,4,5,6,7,8,9,10,11,12,13,14,15,16,17,18,19,20,"Kampen",null,"AS"]
[1,"Gerrit Wientjes","A",14,1,1,1,0,1,1,1,0,0,1,1,1,0,1,0,0,1,1,1,1,null,null,{"$f":"IF(D8>0,1,0)","v":1}]
[2,"Marcel Hermens","A",13,1,1,0,0,0,1,1,1,1,1,1,1,0,1,1,1,0,0,1,0,null,null,{"$f":"IF(D9>0,1,0)","v":1}]
[3,"Thijs van Tilborg","B",10,1,0,0,1,1,1,1,1,0,0,0,0,1,0,1,0,0,0,1,1,null,null,1]
[4,"Wiel Peeters","A",4,0,0,0,0,0,0,1,0,0,0,0,1,0,0,1,0,0,0,1,0,null,null,1]
[5,"Noud v. Lankveld","A",0,null,null,null,null,null,null,null,null,null,null,null,null,null,null,null,null,null,null,null,null,null,null,0]
[6,"Rinie Bloemen","A",0,null,null,null,null,null,null,null,null,null,null,null,null,null,null,null,null,null,null,null,null,null,null,0]
[7,"Sjaak Peeters","A",0,null,null,null,null,null,null,null,null,null,null,null,null,null,null,null,null,null,null,null,null,null,null,0]
[8,null,null,null,null,null,null,null,null,null,null,null,null,null,null,null,null,null,null,null,null,null,null,null,null,null,0]
[9,null,null,null,null,null,null,null,null,null,null,null,null,null,null,null,null,null,null,null,null,null,null,null,null,null,0]
[10,null,null,null,null,null,null,null,null,null,null,null,null,null,null,null,null,null,null,null,null,null,null,null,null,null,0]
[11,null,null,null,null,null,null,null,null,null,null,null,null,null,null,null,null,null,null,null,null,null,null,null,null,null,0]
[12,null,null,null,null,null,null,null,null,null,null,null,null,null,null,null,null,null,null,null,null,null,null,null,null,null,0]
[]
[]
[]
[]
[]
[null,"Vereniging","Plaats","Totaal",1,2,3,4,5,6,7,8,9,10,11,12,13,14,15,16,17,18,19,20,"Kampen",null,"AS"]
[1,{"$f":"IF(D26>0,\"St. Antoniusgilde 1\",\"\")","v":"St. Antoniusgilde 1"},{"$f":"IF(D26>0,\"St. Anthonis\",\"\")","v":"St. Anthonis"},{"$f":"IF(SUM(D8:D11)>0,SUM(D8:D11),\"\")","v":41},{"$f":"IF($D$26>0,SUM(E8:E11),\"\")","v":3},{"$f":"IF($D$26>0,SUM(F8:F11),\"\")","v":2},1,1,2,3,4,2,1,2,2,3,1,2,3,1,1,1,4,2,null,null,{"$f":"SUM(AA8:AA11)","v":4}]
[2,{"$f":"IF(D27>0,\"St. Antoniusgilde 2\",\"\")","v":""},{"$f":"IF(D27>0,\"St. Anthonis\",\"\")","v":""},{"$f":"IF(SUM(D12:D15)>0,SUM(D12:D15),\"\")","v":""},{"$f":"IF($D$27>0,SUM(E12:E15),\"\")","v":""},{"$f":"IF($D$27>0,SUM(F12:F15),\"\")","v":""},"","","","","","","","","","","","","","","","","","",null,null,{"$f":"SUM(AA12:AA15)","v":0}]
[3,{"$f":"IF(D28>0,\"St. Antoniusgilde 3\",\"\")","v":""},"",{"$f":"IF(SUM(D16:D19)>0,SUM(D16:D19),\"\")","v":""},{"$f":"IF($D$28>0,SUM(E16:E19),\"\")","v":""},{"$f":"IF($D$28>0,SUM(F16:F19),\"\")","v":""},"","","","","","","","","","","","","","","","","","",null,null,{"$f":"SUM(AA16:AA19)","v":0}]

{"sheet":"OEFFELT","index":17,"n_rows":28,"n_cols":27,"rows_kept":28,"cut":false,"hidden":false,"merged":[[1,1,1,16],[0,1,0,23]]}
[null,{"$f":"Inv.!$B$1","v":"1e Open  \"Kruisboog op wip\" 2023"}]
[null,{"$f":"Inv.!$B$2","v":"8 April bij het St. Anthonius/St. Nicolaasgilde in Groeningen"}]
[]
[null,"Mandaat","Salvator Mundi Oeffelt"]
[]
[]
[null,"Naam","Klasse","Totaal",1,2,3,4,5,6,7,8,9,10,11,12,13,14,15,16,17,18,19,20,"Kampen",null,"AS"]
[1,"Marco Robbins","A",15,0,1,1,1,1,1,0,1,1,1,1,1,0,0,1,1,1,0,1,1,"0",null,{"$f":"IF(D8>0,1,0)","v":1}]
[2,"Henri Piek","B",0,null,null,null,null,null,null,null,null,null,null,null,null,null,null,null,null,null,null,null,null,null,null,{"$f":"IF(D9>0,1,0)","v":0}]
[3,"Marius Gieben","Ere",0,null,null,null,null,null,null,null,null,null,null,null,null,null,null,null,null,null,null,null,null,null,null,0]
[4,"Stefan Heiltjes","Ere",0,null,null,null,null,null,null,null,null,null,null,null,null,null,null,null,null,null,null,null,null,null,null,0]
[5,null,null,null,null,null,null,null,null,null,null,null,null,null,null,null,null,null,null,null,null,null,null,null,null,null,0]
[6,null,null,null,null,null,null,null,null,null,null,null,null,null,null,null,null,null,null,null,null,null,null,null,null,null,0]
[7,null,null,null,null,null,null,null,null,null,null,null,null,null,null,null,null,null,null,null,null,null,null,null,null,null,0]
[8,null,null,null,null,null,null,null,null,null,null,null,null,null,null,null,null,null,null,null,null,null,null,null,null,null,0]
[9,null,null,null,null,null,null,null,null,null,null,null,null,null,null,null,null,null,null,null,null,null,null,null,null,null,0]
[10,null,null,null,null,null,null,null,null,null,null,null,null,null,null,null,null,null,null,null,null,null,null,null,null,null,0]
[11,null,null,null,null,null,null,null,null,null,null,null,null,null,null,null,null,null,null,null,null,null,null,null,null,null,0]
[12,null,null,null,null,null,null,null,null,null,null,null,null,null,null,null,null,null,null,null,null,null,null,null,null,null,0]
[]
[]
[]
[]
[]
[null,"Vereniging","Plaats","Totaal",1,2,3,4,5,6,7,8,9,10,11,12,13,14,15,16,17,18,19,20,"Kampen",null,"AS"]
[1,{"$f":"IF(D26>0,\"Salvator Mundi 1\",\"\")","v":"Salvator Mundi 1"},{"$f":"IF(D26>0,\"Oeffelt\",\"\")","v":"Oeffelt"},{"$f":"IF(SUM(D8:D11)>0,SUM(D8:D11),\"\")","v":15},{"$f":"IF($D$26>0,SUM(E8:E11),\"\")","v":0},{"$f":"IF($D$26>0,SUM(F8:F11),\"\")","v":1},1,1,1,1,0,1,1,1,1,1,0,0,1,1,1,0,1,1,null,null,{"$f":"SUM(AA8:AA11)","v":1}]
[2,{"$f":"IF(D27>0,\"Salvator Mundi 2\",\"\")","v":""},{"$f":"IF(D27>0,\"Oeffelt\",\"\")","v":""},{"$f":"IF(SUM(D12:D15)>0,SUM(D12:D15),\"\")","v":""},{"$f":"IF($D$27>0,SUM(E12:E15),\"\")","v":""},"","","","","","","","","","","","","","","","","","","",null,null,{"$f":"SUM(AA12:AA15)","v":0}]
[3,{"$f":"IF(D28>0,\"Salvator Mundi 3\",\"\")","v":""},"",{"$f":"IF(SUM(D16:D19)>0,SUM(D16:D19),\"\")","v":""},{"$f":"IF($D$28>0,SUM(E16:E19),\"\")","v":""},{"$f":"IF($D$28>0,SUM(F16:F19),\"\")","v":""},"","","","","","","","","","","","","","","","","","",null,null,{"$f":"SUM(AA16:AA19)","v":0}]

{"sheet":"GEFFEN","index":18,"n_rows":28,"n_cols":27,"rows_kept":28,"cut":false,"hidden":false,"merged":[[1,1,1,16],[0,1,0,23]]}
[null,{"$f":"Inv.!$B$1","v":"1e Open  \"Kruisboog op wip\" 2023"}]
[null,{"$f":"Inv.!$B$2","v":"8 April bij het St. Anthonius/St. Nicolaasgilde in Groeningen"}]
[]
[null,"Mandaat","Gilde St. Joris Geffen"]
[]
[]
[null,"Naam","Klasse","Totaal",1,2,3,4,5,6,7,8,9,10,11,12,13,14,15,16,17,18,19,20,"Kampen",null,"AS"]
[1,"Albert van Orsouw","Ere",0,null,null,null,null,null,null,null,null,null,null,null,null,null,null,null,null,null,null,null,null,null,null,{"$f":"IF(D8>0,1,0)","v":0}]
[2,"Ben Visser","A",0,null,null,null,null,null,null,null,null,null,null,null,null,null,null,null,null,null,null,null,null,null,null,{"$f":"IF(D9>0,1,0)","v":0}]
[3,"Gerard Gerrits","Ere",0,null,null,null,null,null,null,null,null,null,null,null,null,null,null,null,null,null,null,null,null,null,null,0]
[4,"Jan v/d Heijden","A",0,null,null,null,null,null,null,null,null,null,null,null,null,null,null,null,null,null,null,null,null,null,null,0]
[5,"Jos Coppens","Ere",0,null,null,null,null,null,null,null,null,null,null,null,null,null,null,null,null,null,null,null,null,null,null,0]
[6,"Piet van Erp","Ere",0,null,null,null,null,null,null,null,null,null,null,null,null,null,null,null,null,null,null,null,null,null,null,0]
[7,null,null,null,null,null,null,null,null,null,null,null,null,null,null,null,null,null,null,null,null,null,null,null,null,null,0]
[8,null,null,null,null,null,null,null,null,null,null,null,null,null,null,null,null,null,null,null,null,null,null,null,null,null,0]
[9,null,null,null,null,null,null,null,null,null,null,null,null,null,null,null,null,null,null,null,null,null,null,null,null,null,0]
[10,null,null,null,null,null,null,null,null,null,null,null,null,null,null,null,null,null,null,null,null,null,null,null,null,null,0]
[11,null,null,null,null,null,null,null,null,null,null,null,null,null,null,null,null,null,null,null,null,null,null,null,null,null,0]
[12,null,null,null,null,null,null,null,null,null,null,null,null,null,null,null,null,null,null,null,null,null,null,null,null,null,0]
[]
[]
[]
[]
[]
[null,"Vereniging","Plaats","Totaal",1,2,3,4,5,6,7,8,9,10,11,12,13,14,15,16,17,18,19,20,"Kampen",null,"AS"]
[1,{"$f":"IF(D26>0,\"St. Jorisgilde 1\",\"\")","v":""},{"$f":"IF(D26>0,\"Geffen\",\"\")","v":""},{"$f":"IF(SUM(D8:D11)>0,SUM(D8:D11),\"\")","v":""},{"$f":"IF($D$26>0,SUM(E8:E11),\"\")","v":""},{"$f":"IF($D$26>0,SUM(F8:F11),\"\")","v":""},"","","","","","","","","","","","","","","","","","",null,null,{"$f":"SUM(AA8:AA11)","v":0}]
[2,{"$f":"IF(D27>0,\"St. Jorisgilde 2\",\"\")","v":""},{"$f":"IF(D27>0,\"Geffen\",\"\")","v":""},{"$f":"IF(SUM(D12:D15)>0,SUM(D12:D15),\"\")","v":""},{"$f":"IF($D$27>0,SUM(E12:E15),\"\")","v":""},"","","","","","","","","","","","","","","","","","","",null,null,{"$f":"SUM(AA12:AA15)","v":0}]
[3,{"$f":"IF(D28>0,\"St. Jorisgilde 3\",\"\")","v":""},"",{"$f":"IF(SUM(D16:D19)>0,SUM(D16:D19),\"\")","v":""},{"$f":"IF($D$28>0,SUM(E16:E19),\"\")","v":""},{"$f":"IF($D$28>0,SUM(F16:F19),\"\")","v":""},"","","","","","","","","","","","","","","","","","",null,null,{"$f":"SUM(AA16:AA19)","v":0}]

{"sheet":"OSS","index":19,"n_rows":28,"n_cols":27,"rows_kept":28,"cut":false,"hidden":false,"merged":[[1,1,1,16],[0,1,0,23]]}
[null,{"$f":"Inv.!$B$1","v":"1e Open  \"Kruisboog op wip\" 2023"}]
[null,{"$f":"Inv.!$B$2","v":"8 April bij het St. Anthonius/St. Nicolaasgilde in Groeningen"}]
[]
[null,"Mandaat","Sherwood Oss"]
[]
[]
[null,"Naam","Klasse","Totaal",1,2,3,4,5,6,7,8,9,10,11,12,13,14,15,16,17,18,19,20,"Kampen",null,"AS"]
[1,"Frank Akkermans","A",0,null,null,null,null,null,null,null,null,null,null,null,null,null,null,null,null,null,null,null,null,null,null,{"$f":"IF(D8>0,1,0)","v":0}]
[2,"Michael Akkermans","A",0,null,null,null,null,null,null,null,null,null,null,null,null,null,null,null,null,null,null,null,null,null,null,{"$f":"IF(D9>0,1,0)","v":0}]
[3,null,null,null,null,null,null,null,null,null,null,null,null,null,null,null,null,null,null,null,null,null,null,null,null,null,0]
[4,null,null,null,null,null,null,null,null,null,null,null,null,null,null,null,null,null,null,null,null,null,null,null,null,null,0]
[5,null,null,null,null,null,null,null,null,null,null,null,null,null,null,null,null,null,null,null,null,null,null,null,null,null,0]
[6,null,null,null,null,null,null,null,null,null,null,null,null,null,null,null,null,null,null,null,null,null,null,null,null,null,0]
[7,null,null,null,null,null,null,null,null,null,null,null,null,null,null,null,null,null,null,null,null,null,null,null,null,null,0]
[8,null,null,null,null,null,null,null,null,null,null,null,null,null,null,null,null,null,null,null,null,null,null,null,null,null,0]
[9,null,null,null,null,null,null,null,null,null,null,null,null,null,null,null,null,null,null,null,null,null,null,null,null,null,0]
[10,null,null,null,null,null,null,null,null,null,null,null,null,null,null,null,null,null,null,null,null,null,null,null,null,null,0]
[11,null,null,null,null,null,null,null,null,null,null,null,null,null,null,null,null,null,null,null,null,null,null,null,null,null,0]
[12,null,null,null,null,null,null,null,null,null,null,null,null,null,null,null,null,null,null,null,null,null,null,null,null,null,0]
[]
[]
[]
[]
[]
[null,"Vereniging","Plaats","Totaal",1,2,3,4,5,6,7,8,9,10,11,12,13,14,15,16,17,18,19,20,"Kampen",null,"AS"]
[1,{"$f":"IF(D26>0,\"Sherwood 1\",\"\")","v":""},{"$f":"IF(D26>0,\"Oss\",\"\")","v":""},{"$f":"IF(SUM(D8:D11)>0,SUM(D8:D11),\"\")","v":""},{"$f":"IF($D$26>0,SUM(E8:E11),\"\")","v":""},{"$f":"IF($D$26>0,SUM(F8:F11),\"\")","v":""},"","","","","","","","","","","","","","","","","","",null,null,{"$f":"SUM(AA8:AA11)","v":0}]
[2,{"$f":"IF(D27>0,\"Sherwood 2\",\"\")","v":""},{"$f":"IF(D27>0,\"Oss\",\"\")","v":""},{"$f":"IF(SUM(D12:D15)>0,SUM(D12:D15),\"\")","v":""},{"$f":"IF($D$27>0,SUM(E12:E15),\"\")","v":""},"","","","","","","","","","","","","","","","","","","",null,null,{"$f":"SUM(AA12:AA15)","v":0}]
[3,{"$f":"IF(D28>0,\"Sherwood 3\",\"\")","v":""},"",{"$f":"IF(SUM(D16:D19)>0,SUM(D16:D19),\"\")","v":""},{"$f":"IF($D$28>0,SUM(E16:E19),\"\")","v":""},{"$f":"IF($D$28>0,SUM(F16:F19),\"\")","v":""},"","","","","","","","","","","","","","","","","","",null,null,{"$f":"SUM(AA16:AA19)","v":0}]

{"sheet":"AFFERDEN","index":20,"n_rows":28,"n_cols":27,"rows_kept":28,"cut":false,"hidden":false,"merged":[[1,1,1,16],[0,1,0,23]]}
[null,{"$f":"Inv.!$B$1","v":"1e Open  \"Kruisboog op wip\" 2023"}]
[null,{"$f":"Inv.!$B$2","v":"8 April bij het St. Anthonius/St. Nicolaasgilde in Groeningen"}]
[]
[null,"Mandaat","Prins Hendrik Afferden"]
[]
[]
[null,"Naam","Klasse","Totaal",1,2,3,4,5,6,7,8,9,10,11,12,13,14,15,16,17,18,19,20,"Kampen",null,"AS"]
[1,"Frans Roersch","B",0,null,null,null,null,null,null,null,null,null,null,null,null,null,null,null,null,null,null,null,null,null,null,{"$f":"IF(D8>0,1,0)","v":0}]
[2,null,null,null,null,null,null,null,null,null,null,null,null,null,null,null,null,null,null,null,null,null,null,null,null,null,{"$f":"IF(D9>0,1,0)","v":0}]
[3,null,null,null,null,null,null,null,null,null,null,null,null,null,null,null,null,null,null,null,null,null,null,null,null,null,0]
[4,null,null,null,null,null,null,null,null,null,null,null,null,null,null,null,null,null,null,null,null,null,null,null,null,null,0]
[5,null,null,null,null,null,null,null,null,null,null,null,null,null,null,null,null,null,null,null,null,null,null,null,null,null,0]
[6,null,null,null,null,null,null,null,null,null,null,null,null,null,null,null,null,null,null,null,null,null,null,null,null,null,0]
[7,null,null,null,null,null,null,null,null,null,null,null,null,null,null,null,null,null,null,null,null,null,null,null,null,null,0]
[8,null,null,null,null,null,null,null,null,null,null,null,null,null,null,null,null,null,null,null,null,null,null,null,null,null,0]
[9,null,null,null,null,null,null,null,null,null,null,null,null,null,null,null,null,null,null,null,null,null,null,null,null,null,0]
[10,null,null,null,null,null,null,null,null,null,null,null,null,null,null,null,null,null,null,null,null,null,null,null,null,null,0]
[11,null,null,null,null,null,null,null,null,null,null,null,null,null,null,null,null,null,null,null,null,null,null,null,null,null,0]
[12,null,null,null,null,null,null,null,null,null,null,null,null,null,null,null,null,null,null,null,null,null,null,null,null,null,0]
[]
[]
[]
[]
[]
[null,"Vereniging","Plaats","Totaal",1,2,3,4,5,6,7,8,9,10,11,12,13,14,15,16,17,18,19,20,"Kampen",null,"AS"]
[1,{"$f":"IF(D26>0,\"Prins Hendrik 1\",\"\")","v":""},{"$f":"IF(D26>0,\"Afferden\",\"\")","v":""},{"$f":"IF(SUM(D8:D11)>0,SUM(D8:D11),\"\")","v":""},{"$f":"IF($D$26>0,SUM(E8:E11),\"\")","v":""},{"$f":"IF($D$26>0,SUM(F8:F11),\"\")","v":""},"","","","","","","","","","","","","","","","","","",null,null,{"$f":"SUM(AA8:AA11)","v":0}]
[2,{"$f":"IF(D27>0,\"Prins Hendrik 2\",\"\")","v":""},{"$f":"IF(D27>0,\"Afferden\",\"\")","v":""},{"$f":"IF(SUM(D12:D15)>0,SUM(D12:D15),\"\")","v":""},{"$f":"IF($D$27>0,SUM(E12:E15),\"\")","v":""},"","","","","","","","","","","","","","","","","","","",null,null,{"$f":"SUM(AA12:AA15)","v":0}]
[3,{"$f":"IF(D28>0,\"Prins Hendrik 3\",\"\")","v":""},{"$f":"IF(D28>0,\"Afferden\",\"\")","v":""},{"$f":"IF(SUM(D16:D19)>0,SUM(D16:D19),\"\")","v":""},{"$f":"IF($D$28>0,SUM(E16:E19),\"\")","v":""},{"$f":"IF($D$28>0,SUM(F16:F19),\"\")","v":""},"","","","","","","","","","","","","","","","","","",null,null,{"$f":"SUM(AA16:AA19)","v":0}]

{"sheet":"GROENINGEN","index":21,"n_rows":29,"n_cols":27,"rows_kept":29,"cut":false,"hidden":false,"merged":[[1,1,1,16],[0,1,0,23]]}
[null,{"$f":"Inv.!$B$1","v":"1e Open  \"Kruisboog op wip\" 2023"}]
[null,{"$f":"Inv.!$B$2","v":"8 April bij het St. Anthonius/St. Nicolaasgilde in Groeningen"}]
[]
[null,"Mandaat","St. Anthonius - St. Nicolaasgilde Groeningen"]
[]
[]
[null,"Naam","Klasse","Totaal",1,2,3,4,5,6,7,8,9,10,11,12,13,14,15,16,17,18,19,20,"Kampen",null,"AS"]
[1,"Theo van Kessel","Ere",20,1,1,1,1,1,1,1,1,1,1,1,1,1,1,1,1,1,1,1,1,null,null,{"$f":"IF(D8>0,1,0)","v":1}]
[2,"Jac Gerrits","Ere",18,1,1,1,1,1,1,1,1,1,1,1,0,1,1,1,1,1,0,1,1,null,null,{"$f":"IF(D9>0,1,0)","v":1}]
[3,"Rinus Thijsen","A",18,1,1,1,1,1,1,1,1,0,1,1,1,1,1,1,1,1,1,1,0,null,null,1]
[4,"Theo Vervoort","A",15,1,0,1,1,0,1,1,1,1,1,1,1,1,1,0,1,0,0,1,1,"111",null,1]
[5,"Jens Loenen","A",13,1,1,1,1,0,0,0,1,0,1,1,1,0,1,1,1,0,0,1,1,null,null,1]
[6,"Chris Rijnen","B",0,null,null,null,null,null,null,null,null,null,null,null,null,null,null,null,null,null,null,null,null,null,null,0]
[7,"Peter Jacobs","A",0,null,null,null,null,null,null,null,null,null,null,null,null,null,null,null,null,null,null,null,null,null,null,0]
[8,"Truus Kusters","A",0,null,null,null,null,null,null,null,null,null,null,null,null,null,null,null,null,null,null,null,null,null,null,0]
[9,null,null,null,null,null,null,null,null,null,null,null,null,null,null,null,null,null,null,null,null,null,null,null,null,null,0]
[10,null,null,null,null,null,null,null,null,null,null,null,null,null,null,null,null,null,null,null,null,null,null,null,null,null,0]
[11,null,null,null,null,null,null,null,null,null,null,null,null,null,null,null,null,null,null,null,null,null,null,null,null,null,0]
[12,null,null,null,null,null,null,null,null,null,null,null,null,null,null,null,null,null,null,null,null,null,null,null,null,null,0]
[13,null,null,null,null,null,null,null,null,null,null,null,null,null,null,null,null,null,null,null,null,null,null,null,null,null,0]
[14,null,null,null,null,null,null,null,null,null,null,null,null,null,null,null,null,null,null,null,null,null,null,null,null,null,0]
[15,null,null,null,null,null,null,null,null,null,null,null,null,null,null,null,null,null,null,null,null,null,null,null,null,null,0]
[16,null,null,null,null,null,null,null,null,null,null,null,null,null,null,null,null,null,null,null,null,null,null,null,null,null,0]
[]
[null,"Vereniging","Plaats","Totaal",1,2,3,4,5,6,7,8,9,10,11,12,13,14,15,16,17,18,19,20,"Kampen",null,"AS"]
[1,{"$f":"IF(D26>0,\"St. Anthonius - St. Nicolaasgilde 1\",\"\")","v":"St. Anthonius - St. Nicolaasgilde 1"},{"$f":"IF(D26>0,\"Groeningen\",\"\")","v":"Groeningen"},{"$f":"IF(SUM(D8:D11)>0,SUM(D8:D11),\"\")","v":71},{"$f":"IF($D$26>0,SUM(E8:E11),\"\")","v":4},{"$f":"IF($D$26>0,SUM(F8:F11),\"\")","v":3},4,4,3,4,4,4,3,4,4,3,4,4,3,4,3,2,4,3,null,null,{"$f":"SUM(AA8:AA11)","v":4}]
[2,{"$f":"IF(D27>0,\"St. Anthonius - St. Nicolaasgilde 2\",\"\")","v":"St. Anthonius - St. Nicolaasgilde 2"},{"$f":"IF(D27>0,\"Groeningen\",\"\")","v":"Groeningen"},{"$f":"IF(SUM(D12:D15)>0,SUM(D12:D15),\"\")","v":13},{"$f":"IF($D$27>0,SUM(E12:E15),\"\")","v":1},1,1,1,0,0,0,1,0,1,1,1,0,1,1,1,0,0,1,1,null,null,{"$f":"SUM(AA12:AA15)","v":1}]
[3,{"$f":"IF(D28>0,\"St. Anthonius - St. Nicolaasgilde 3\",\"\")","v":""},{"$f":"IF(D28>0,\"Groeningen\",\"\")","v":""},{"$f":"IF(SUM(D16:D19)>0,SUM(D16:D19),\"\")","v":""},{"$f":"IF($D$28>0,SUM(E16:E19),\"\")","v":""},{"$f":"IF($D$28>0,SUM(F16:F19),\"\")","v":""},"","","","","","","","","","","","","","","","","","",null,null,{"$f":"SUM(AA16:AA19)","v":0}]
[4,{"$f":"IF(D29>0,\"St. Anthonius - St. Nicolaasgilde 4\",\"\")","v":""},{"$f":"IF(D29>0,\"Groeningen\",\"\")","v":""},{"$f":"IF(SUM(D20:D23)>0,SUM(D20:D23),\"\")","v":""},{"$f":"IF($D$29>0,SUM(E20:E23),\"\")","v":""},"","","","","","","","","","","","","","","","","","","",null,null,{"$f":"SUM(AA20:AA23)","v":0}]

{"sheet":"BEERS","index":22,"n_rows":28,"n_cols":27,"rows_kept":28,"cut":false,"hidden":false,"merged":[[1,1,1,16],[0,1,0,23]]}
[null,{"$f":"Inv.!$B$1","v":"1e Open  \"Kruisboog op wip\" 2023"}]
[null,{"$f":"Inv.!$B$2","v":"8 April bij het St. Anthonius/St. Nicolaasgilde in Groeningen"}]
[]
[null,"Mandaat","St. Anthoniusgilde Beers"]
[]
[]
[null,"Naam","Klasse","Totaal",1,2,3,4,5,6,7,8,9,10,11,12,13,14,15,16,17,18,19,20,"Kampen",null,"AS"]
[1,"Danny Hendriks","A",0,null,null,null,null,null,null,null,null,null,null,null,null,null,null,null,null,null,null,null,null,null,null,{"$f":"IF(D8>0,1,0)","v":0}]
[2,"Harry Nabuurs","Ere",0,null,null,null,null,null,null,null,null,null,null,null,null,null,null,null,null,null,null,null,null,null,null,{"$f":"IF(D9>0,1,0)","v":0}]
[3,"Henk Strik","B",0,null,null,null,null,null,null,null,null,null,null,null,null,null,null,null,null,null,null,null,null,null,null,0]
[4,"Nick Hendriks","Ere",0,null,null,null,null,null,null,null,null,null,null,null,null,null,null,null,null,null,null,null,null,null,null,0]
[5,"Noud Thelosen","A",0,null,null,null,null,null,null,null,null,null,null,null,null,null,null,null,null,null,null,null,null,null,null,0]
[6,"Rien Claassen","A",0,null,null,null,null,null,null,null,null,null,null,null,null,null,null,null,null,null,null,null,null,null,null,0]
[7,null,null,null,null,null,null,null,null,null,null,null,null,null,null,null,null,null,null,null,null,null,null,null,null,null,0]
[8,null,null,null,null,null,null,null,null,null,null,null,null,null,null,null,null,null,null,null,null,null,null,null,null,null,0]
[9,null,null,null,null,null,null,null,null,null,null,null,null,null,null,null,null,null,null,null,null,null,null,null,null,null,0]
[10,null,null,null,null,null,null,null,null,null,null,null,null,null,null,null,null,null,null,null,null,null,null,null,null,null,0]
[11,null,null,null,null,null,null,null,null,null,null,null,null,null,null,null,null,null,null,null,null,null,null,null,null,null,0]
[12,null,null,null,null,null,null,null,null,null,null,null,null,null,null,null,null,null,null,null,null,null,null,null,null,null,0]
[]
[]
[]
[]
[]
[null,"Vereniging","Plaats","Totaal",1,2,3,4,5,6,7,8,9,10,11,12,13,14,15,16,17,18,19,20,"Kampen",null,"AS"]
[1,{"$f":"IF(D26>0,\"St. Anthoniusgilde 1\",\"\")","v":""},{"$f":"IF(D26>0,\"Beers\",\"\")","v":""},{"$f":"IF(SUM(D8:D11)>0,SUM(D8:D11),\"\")","v":""},{"$f":"IF($D$26>0,SUM(E8:E11),\"\")","v":""},{"$f":"IF($D$26>0,SUM(F8:F11),\"\")","v":""},"","","","","","","","","","","","","","","","","","",null,null,{"$f":"SUM(AA8:AA11)","v":0}]
[2,{"$f":"IF(D27>0,\"St. Anthoniusgilde 2\",\"\")","v":""},{"$f":"IF(D27>0,\"Beers\",\"\")","v":""},{"$f":"IF(SUM(D12:D15)>0,SUM(D12:D15),\"\")","v":""},{"$f":"IF($D$27>0,SUM(E12:E15),\"\")","v":""},"","","","","","","","","","","","","","","","","","","",null,null,{"$f":"SUM(AA12:AA15)","v":0}]
[3,{"$f":"IF(D28>0,\"St. Anthoniusgilde 3\",\"\")","v":""},"",{"$f":"IF(SUM(D16:D19)>0,SUM(D16:D19),\"\")","v":""},{"$f":"IF($D$28>0,SUM(E16:E19),\"\")","v":""},{"$f":"IF($D$28>0,SUM(F16:F19),\"\")","v":""},"","","","","","","","","","","","","","","","","","",null,null,{"$f":"SUM(AA16:AA19)","v":0}]

{"sheet":"HAPERT","index":23,"n_rows":28,"n_cols":27,"rows_kept":28,"cut":false,"hidden":false,"merged":[[1,1,1,16],[0,1,0,23]]}
[null,{"$f":"Inv.!$B$1","v":"1e Open  \"Kruisboog op wip\" 2023"}]
[null,{"$f":"Inv.!$B$2","v":"8 April bij het St. Anthonius/St. Nicolaasgilde in Groeningen"}]
[]
[null,"Mandaat","St. Jorisgilde Hapert"]
[]
[]
[null,"Naam","Klasse","Totaal",1,2,3,4,5,6,7,8,9,10,11,12,13,14,15,16,17,18,19,20,"Kampen",null,"AS"]
[1,"Jan Huibers","A",0,null,null,null,null,null,null,null,null,null,null,null,null,null,null,null,null,null,null,null,null,null,null,{"$f":"IF(D8>0,1,0)","v":0}]
[2,"Theo Gijsbers","B",0,null,null,null,null,null,null,null,null,null,null,null,null,null,null,null,null,null,null,null,null,null,null,{"$f":"IF(D9>0,1,0)","v":0}]
[3,"Willem Kirchmer","A",0,null,null,null,null,null,null,null,null,null,null,null,null,null,null,null,null,null,null,null,null,null,null,0]
[4,"Wim Hoevenaars","Ere",0,null,null,null,null,null,null,null,null,null,null,null,null,null,null,null,null,null,null,null,null,null,null,0]
[5,null,null,null,null,null,null,null,null,null,null,null,null,null,null,null,null,null,null,null,null,null,null,null,null,null,0]
[6,null,null,null,null,null,null,null,null,null,null,null,null,null,null,null,null,null,null,null,null,null,null,null,null,null,0]
[7,null,null,null,null,null,null,null,null,null,null,null,null,null,null,null,null,null,null,null,null,null,null,null,null,null,0]
[8,null,null,null,null,null,null,null,null,null,null,null,null,null,null,null,null,null,null,null,null,null,null,null,null,null,0]
[9,null,null,null,null,null,null,null,null,null,null,null,null,null,null,null,null,null,null,null,null,null,null,null,null,null,0]
[10,null,null,null,null,null,null,null,null,null,null,null,null,null,null,null,null,null,null,null,null,null,null,null,null,null,0]
[11,null,null,null,null,null,null,null,null,null,null,null,null,null,null,null,null,null,null,null,null,null,null,null,null,null,0]
[12,null,null,null,null,null,null,null,null,null,null,null,null,null,null,null,null,null,null,null,null,null,null,null,null,null,0]
[]
[]
[]
[]
[]
[null,"Vereniging","Plaats","Totaal",1,2,3,4,5,6,7,8,9,10,11,12,13,14,15,16,17,18,19,20,"Kampen",null,"AS"]
[1,{"$f":"IF(D26>0,\"St. Jorisgilde 1\",\"\")","v":""},{"$f":"IF(D26>0,\"Hapert\",\"\")","v":""},{"$f":"IF(SUM(D8:D11)>0,SUM(D8:D11),\"\")","v":""},{"$f":"IF($D$26>0,SUM(E8:E11),\"\")","v":""},{"$f":"IF($D$26>0,SUM(F8:F11),\"\")","v":""},"","","","","","","","","","","","","","","","","","",null,null,{"$f":"SUM(AA8:AA11)","v":0}]
[2,{"$f":"IF(D27>0,\"St. Jorisgilde 2\",\"\")","v":""},{"$f":"IF(D27>0,\"Hapert\",\"\")","v":""},{"$f":"IF(SUM(D12:D15)>0,SUM(D12:D15),\"\")","v":""},{"$f":"IF($D$27>0,SUM(E12:E15),\"\")","v":""},"","","","","","","","","","","","","","","","","","","",null,null,{"$f":"SUM(AA12:AA15)","v":0}]
[3,{"$f":"IF(D28>0,\"St. Jorisgilde 3\",\"\")","v":""},"",{"$f":"IF(SUM(D16:D19)>0,SUM(D16:D19),\"\")","v":""},{"$f":"IF($D$28>0,SUM(E16:E19),\"\")","v":""},{"$f":"IF($D$28>0,SUM(F16:F19),\"\")","v":""},"","","","","","","","","","","","","","","","","","",null,null,{"$f":"SUM(AA16:AA19)","v":0}]

{"sheet":"ZEELAND","index":24,"n_rows":28,"n_cols":27,"rows_kept":28,"cut":false,"hidden":false,"merged":[[1,1,1,16],[0,1,0,23]]}
[null,{"$f":"Inv.!$B$1","v":"1e Open  \"Kruisboog op wip\" 2023"}]
[null,{"$f":"Inv.!$B$2","v":"8 April bij het St. Anthonius/St. Nicolaasgilde in Groeningen"}]
[]
[null,"Mandaat","K.V. Fortuna Zeeland"]
[]
[]
[null,"Naam","Klasse","Totaal",1,2,3,4,5,6,7,8,9,10,11,12,13,14,15,16,17,18,19,20,"Kampen",null,"AS"]
[1,"Piet Hendriks","A",10,1,1,1,1,0,1,1,1,0,0,1,1,0,0,1,0,0,0,0,0,null,null,{"$f":"IF(D8>0,1,0)","v":1}]
[2,null,null,null,null,null,null,null,null,null,null,null,null,null,null,null,null,null,null,null,null,null,null,null,null,null,{"$f":"IF(D9>0,1,0)","v":0}]
[3,null,null,null,null,null,null,null,null,null,null,null,null,null,null,null,null,null,null,null,null,null,null,null,null,null,0]
[4,null,null,null,null,null,null,null,null,null,null,null,null,null,null,null,null,null,null,null,null,null,null,null,null,null,0]
[5,null,null,null,null,null,null,null,null,null,null,null,null,null,null,null,null,null,null,null,null,null,null,null,null,null,0]
[6,null,null,null,null,null,null,null,null,null,null,null,null,null,null,null,null,null,null,null,null,null,null,null,null,null,0]
[7,null,null,null,null,null,null,null,null,null,null,null,null,null,null,null,null,null,null,null,null,null,null,null,null,null,0]
[8,null,null,null,null,null,null,null,null,null,null,null,null,null,null,null,null,null,null,null,null,null,null,null,null,null,0]
[9,null,null,null,null,null,null,null,null,null,null,null,null,null,null,null,null,null,null,null,null,null,null,null,null,null,0]
[10,null,null,null,null,null,null,null,null,null,null,null,null,null,null,null,null,null,null,null,null,null,null,null,null,null,0]
[11,null,null,null,null,null,null,null,null,null,null,null,null,null,null,null,null,null,null,null,null,null,null,null,null,null,0]
[12,null,null,null,null,null,null,null,null,null,null,null,null,null,null,null,null,null,null,null,null,null,null,null,null,null,0]
[]
[]
[]
[]
[]
[null,"Vereniging","Plaats","Totaal",1,2,3,4,5,6,7,8,9,10,11,12,13,14,15,16,17,18,19,20,"Kampen",null,"AS"]
[1,{"$f":"IF(D26>0,\"K.V. Fortuna 1\",\"\")","v":"K.V. Fortuna 1"},{"$f":"IF(D26>0,\"Zeeland\",\"\")","v":"Zeeland"},{"$f":"IF(SUM(D8:D11)>0,SUM(D8:D11),\"\")","v":10},{"$f":"IF($D$26>0,SUM(E8:E11),\"\")","v":1},{"$f":"IF($D$26>0,SUM(F8:F11),\"\")","v":1},1,1,0,1,1,1,0,0,1,1,0,0,1,0,0,0,0,0,null,null,{"$f":"SUM(AA8:AA11)","v":1}]
[2,{"$f":"IF(D27>0,\"K.V. Fortuna 2\",\"\")","v":""},{"$f":"IF(D27>0,\"Zeeland\",\"\")","v":""},{"$f":"IF(SUM(D12:D15)>0,SUM(D12:D15),\"\")","v":""},{"$f":"IF($D$27>0,SUM(E12:E15),\"\")","v":""},"","","","","","","","","","","","","","","","","","","",null,null,{"$f":"SUM(AA12:AA15)","v":0}]
[3,{"$f":"IF(D28>0,\"K.V. Fortuna 3\",\"\")","v":""},{"$f":"IF(D28>0,\"Zeeland\",\"\")","v":""},{"$f":"IF(SUM(D16:D19)>0,SUM(D16:D19),\"\")","v":""},{"$f":"IF($D$28>0,SUM(E16:E19),\"\")","v":""},{"$f":"IF($D$28>0,SUM(F16:F19),\"\")","v":""},"","","","","","","","","","","","","","","","","","",null,null,{"$f":"SUM(AA16:AA19)","v":0}]

{"sheet":"Blad1","index":25,"n_rows":23,"n_cols":15,"rows_kept":23,"cut":false,"hidden":false,"merged":[]}
["Plaats","Plaats","Plaats","Plaats","Plaats","Plaats","Plaats","Plaats","Plaats","Plaats","Plaats","Plaats","Plaats","Plaats","Plaats"]
[{"$f":"Inv.!$C$6","v":"Oploo"},{"$f":"Inv.!$C$20","v":"Overloon"},{"$f":"Inv.!$C$34","v":"Boekel"},{"$f":"Inv.!$C$48","v":"Heijen"},{"$f":"Inv.!$C$62","v":"Beugen"},{"$f":"Inv.!$C$76","v":"Hei en Boeicop"},{"$f":"Inv.!$C$90","v":"St. Anthonis"},{"$f":"Inv.!$C$104","v":"Oeffelt"},{"$f":"Inv.!$C$118","v":"Geffen"},{"$f":"Inv.!$C$132","v":"Afferden"},{"$f":"Inv.!$C$146","v":"Oss"},{"$f":"Inv.!$C$202","v":"Groeningen"},{"$f":"Inv.!$C$160","v":"Beers"},{"$f":"Inv.!$C$174","v":"Hapert"},"Zeeland"]
[]
[]
[]
[]
[]
[{"$f":"IF(SUM(B8:U8)>0,SUM(B8:U8),\"\")","v":""}]
[]
["Klasse","Totaal"]
["Ere",">0"]
[]
["Klasse","Totaal"]
["A",">0"]
[]
["Klasse","Totaal"]
["B",">0"]
[]
["Jeugd","Totaal"]
["Dame",">0"]
[]
["Jeugd","Totaal"]
["Jeugd",">0"]

{"sheet":"Kampioenen","index":26,"n_rows":83,"n_cols":13,"rows_kept":83,"cut":false,"hidden":false,"merged":[]}
["Alle Algemeen Nederlands kampioenen Persoonlijk ",null,null,null,null,null,null,"Alle Algemeen Nederlands kampioenen Korps"]
[null,"Naam","Vereniging","Plaats","Punten",null,null,null,"Vereniging","Plaats","Punten"]
[2004,null,null,null,null,null,null,2004]
[2005,null,null,null,null,null,null,2005]
[2006,"Jos Graat","St. Dionysiusgilde","Heijen",19,null,null,2006,"St. Dionysiusgilde","Heijen",70]
[2007,"Theo Heijligers","St. Matthiasgilde","Oploo",20,"N.K.",null,2007,"St. Matthiasgilde","Oploo",78]
[2008,"Kevin v. IJzendoorn","St. Lambertusgilde","Maren - Kessel",17,null,null,2008,"St. Matthiasgilde","Oploo",46]
[2009,"Jos Coppens","St. Jorisgilde","Geffen",19,"N.K.",null,2009,"St. Jorisgilde","Geffen",68]
[2010,"John v. Haare","St. Dionysiusgilde","Heijen",21,"N.K.",null,2010,"St. Dionysiusgilde","Heijen",78]
[2011,"Geert Arts","St. Theobaldusgilde","Overloon",20,"N.K.",null,2011,"St. Matthiasgilde","Oploo",76]
[2012,"Geert Arts","St. Theobaldusgilde","Overloon",20,null,null,2012,"St. Matthiasgilde","Oploo",66]
[2013,"Theo Heijligers","St. Matthiasgilde","Oploo",18,"N.K.",null,2013,"St. Theobaldusgilde","Overloon",62]
[2014,"Walter Huisman","St. Martinus St. Antoniusgilde","Hei en Boeicop",20,"N.K.",null,2014,"St. Dionysiusgilde","Heijen",68]
[2015,"Ronnie Sommers","St. Matthiasgilde","Oploo",20,null,null,2015,"St. Dionysiusgilde","Heijen",66]
[2016,"Jo Vluggen","St. Agathagilde","Boekel",20,"N.K.",null,2016,"St. Anthonius/St.Nicolaasgilde","Groeningen",74]
[2017,"Ronnie Sommers","St. Matthiasgilde","Oploo",19,null,null,2017,"St. Anthoniusgilde 1","Beers",71]
[2018,"Geert Arts","St. Theobaldusgilde","Overloon",20,"N.K.",null,2018,"St. Anthonius/St.Nicolaasgilde","Groeningen",75]
[2019,"Walter Huisman","St. Martinus en St. Antoniusgilde","Hei en Boeicop",19,"N.K.",null,2019,"St. Matthiasgilde","Oploo",67]
[2020,"Ronnie Sommers","St. Matthiasgilde","Oploo",20,null,null,2020,"St. Anthonius/St.Nicolaasgilde","Groeningen",52,"3 personen"]
[2021,"Rinie Bloemen","St. Anthoniusgilde","St. Anthonis",19,"N.K.",null,2021,"St. Anthonisgilde","St. Anthonis",52]
[]
["Alle Persoonlijk Nederlands kampioenen Ere klasse",null,null,null,null,null,null,"Alle Persoonlijk Nederlands kampioenen A klasse"]
[null,"Naam","Vereniging","Plaats","Punten",null,null,null,"Naam","Vereniging","Plaats","Punten"]
[2004,null,null,null,null,null,null,2004]
[2005,null,null,null,null,null,null,2005]
[2006,"Theo Sommers","St. Matthiasgilde","Oploo",18,null,null,2006,"Jos Graat","St. Dionysiusgilde","Heijen",19]
[2007,"Ronnie Sommers","St. Matthiasgilde","Oploo",20,"N.K.",null,2007,"Jos Graat","St. Dionysiusgilde","Heijen",19,"N.K."]
[2008,"Jan v. IJzendoorn","St. Lambertusgilde","Maren - Kessel",17,null,null,2008,"Chris Cornelissen","St. Matthiasgilde","Oploo",13]
[2009,"Jos Coppens","St. Jorisgilde","Geffen",19,"N.K.",null,2009,"Jos Graat","St. Dionysiusgilde","Heijen",18]
[2010,"John v. Haare","St. Dionysiusgilde","Heijen",21,null,null,2010,"Jos Graat","St. Dionysiusgilde","Heijen",21]
[2011,"Geert Arts","St. Theobaldusgilde","Overloon",20,"N.K.",null,2011,"Jan v. Sambeek","St. Matthiasgilde","Oploo",16]
[2012,"Geert Arts","St. Theobaldusgilde","Overloon",20,null,null,2012,"Theo Heijligers","St. Matthiasgilde","Oploo",19]
[2013,"Geert Arts","St. Theobaldusgilde","Overloon",18,"N.K.",null,2013,"Jac Gerrits","St. Anthonius / St. Nicolaasgilde","Groeningen",15]
[2014,"Ronnie Sommers","St. Matthiasgilde","Oploo",20,null,null,2014,"Walter Huisman","St. Martinus St. Antoniusgilde","Hei en Boeicop",20]
[2015,"Jac Gerrits","St. Anthonius / St. Nicolaasgilde","Groeningen",17,null,null,2015,"Ronnie Sommers","St. Matthiasgilde","Oploo",20]
[2016,"Walter Huisman","St. Martinus en St. Antoniusgilde","Hei en Boeicop",20,null,null,2016,"Jo Vluggen","St. Agathagilde","Boekel",20]
[2017,"Ronnie Sommers","St. Matthiasgilde","Oploo",19,null,null,2017,"Rien Claassen","St. Anthoniusgilde","Beers",18,"N.K."]
[2018,"Theo van Kessel","St. Anthonius / St. Nicolaasgilde","Groeningen",20,"N.K.",null,2018,"Frank Akkermans","K.V. Sherwood","Oss",20]
[2019,"Jac Gerrits","St. Anthonius / St. Nicolaasgilde","Groeningen",19,null,null,2019,"Walter Huisman","St. Martinus en St. Antoniusgilde","Hei en Boeicop",19]
[2020,"Ronnie Sommers","St. Matthiasgilde","Oploo",20,null,null,2020,"Peter Jacobs","St. Anthonius / St. Nicolaasgilde","Groeningen",18]
[2021,"Rinie Bloemen","St. Anthonisgilde","St. Anthonis",19,"N.K.",null,2021,"Theo van Kessel","St. Anthonius / St. Nicolaasgilde","Groeningen",18,"N.K."]
[]
["Alle Persoonlijk Nederlands kampioenen B klasse",null,null,null,null,null,null,"Alle Persoonlijk Nederlands kampioenen Jeugd klasse"]
[null,"Naam","Vereniging","Plaats","Punten",null,null,null,"Naam","Vereniging","Plaats","Punten"]
[2004,"xxx",null,null,null,null,null,2004]
[2005,"xxx",null,null,null,null,null,2005]
[2006,"xxx",null,null,null,null,null,2006,"Kevin v. IJzendoorn","St. Lambertusgilde","Maren - Kessel",16]
[2007,"xxx",null,null,null,null,null,2007,"Kevin v. IJzendoorn","St. Lambertusgilde","Maren - Kessel",18]
[2008,"xxx",null,null,null,null,null,2008,"Kevin v. IJzendoorn","St. Lambertusgilde","Maren - Kessel",17]
[2009,"xxx",null,null,null,null,null,2009,"Denny Coppens","St. Jorisgilde","Geffen",16]
[2010,"xxx",null,null,null,null,null,2010,"Jordi Colijn",null,"Rosmalen",19]
[2011,"Thijs Sanders","St. Agathagilde","Boekel",15,null,null,2011,"Mark Jans","St. Theobaldusgilde","Overloon",16]
[2012,"Jac Gerrits","St. Anthonius / St. Nicolaasgilde","Groeningen",15,null,null,2012,"Wesley Arts","St. Theobaldusgilde","Overloon",16]
[2013,"Peter Jacobs","St. Anthonius / St. Nicolaasgilde","Groeningen",17,null,null,2013,"Wesley Arts","St. Theobaldusgilde","Overloon",15]
[2014,"Jo Vluggen","St. Agathagilde","Boekel",19,null,null,2014,"Jens Loenen","St. Anthonius / St. Nicolaasgilde","Groeningen",14]
[2015,"Antoon Graat","St. Dionysiusgilde","Heijen",11,null,null,2015,"geen deelname"]
[2016,"Noud Thelosen","St. Anthoniusgilde","Beers",17,null,null,2016,"Martijn Graat","St. Dionysiusgilde","Heijen",10]
[2017,"Jan van Sambeek","St. Matthiasgilde","Oploo",17,null,null,2017,"Nick Hendriks","St. Anthoniusgilde","Beers",18]
[2018,"Rinus Thijsen","St. Anthonius / St. Nicolaasgilde","Groeningen",16,null,null,2018,"geen deelname"]
[2019,"Rinus Thijsen","St. Anthonius / St. Nicolaasgilde","Groeningen",17,null,null,2019,"Martijn Graat","St. Dionysiusgilde","Heijen",18]
[2020,"Jo Kremers","KV Fortuna","Zeeland",13,null,null,2020]
[2021,"Martijn Graat","St. Dionysiusgilde","Heijen",17,null,null,2021]
[]
["Alle Persoonlijk Nederlands kampioenen Dames"]
[null,"Naam","Vereniging","Plaats","Punten"]
[2004,"xxx"]
[2005,"xxx"]
[2006,"xxx"]
[2007,"xxx"]
[2008,"xxx"]
[2009,"xxx"]
[2010,"xxx"]
[2011,"xxx"]
[2012,"xxx"]
[2013,"xxx"]
[2014,"xxx"]
[2015,"Annie Verberk","St. Theobaldusgilde","Overloon",11]
[2016,"Gratia Brand","St. Martinus en St. Antoniusgilde","Hei en Boeicop",17]
[2017,"Gratia Brand","St. Martinus en St. Antoniusgilde","Hei en Boeicop",18]
[2018,"Gratia Brand","St. Martinus en St. Antoniusgilde","Hei en Boeicop",17]
[2019,"Annie Verberk","St. Theobaldusgilde","Overloon",12]
[2020,"Truus Kusters","St. Anthonius / St. Nicolaasgilde","Groeningen",17]
[2021,"Truus Kusters","St. Anthonius / St. Nicolaasgilde","Groeningen",14]

{"sheet":"Gemiddelde","index":27,"n_rows":105,"n_cols":21,"rows_kept":105,"cut":false,"hidden":false,"merged":[[0,0,0,5]]}
[2022,null,null,null,null,null,null,null,null,"Naam","Plaats","Klasse","Jeugd","gem.",null,null,"Naam","Plaats","Klasse","Jeugd","gem."]
[null,"Naam","Plaats","Klasse","Jeugd","gem.",null,null,1,"John van Haare","Heijen","Ere",null,18.75,null,1,"Veronique Rijnen","Groeningen","A","dame",19]
[1,"Jac Gerrits","Groeningen","Ere",null,20,null,null,2,"Chris Cornelissen","Oploo","Ere",null,18,null,2,"Peter Behet","Heijen","A",null,17]
[2,"Rinie Bloemen","St. Anthonis","Ere",null,19,null,null,3,"Ronnie Sommers","Oploo","Ere",null,18,null,3,"Thijs Sanders","Boekel","A",null,16]
[3,"Noud v. Lankveld","St. Anthonis","Ere",null,18.5,null,null,4,"Nick Hendriks","Beers","Ere","jeugd",18,null,4,"Tim van Lanen","Beers","A","jeugd",16]
[4,"Walter Huisman","Hei en Boeicop","Ere",null,18.170000000000002,null,null,5,"Geert Arts","Overloon","Ere",null,17.600000000000001,null,5,"Gerrit Behet","Heijen","A",null,15.8]
[5,"Markus Katalowski","Heijen","Ere",null,18,null,null,6,"Jac Gerrits","Groeningen","Ere",null,17.329999999999998,null,6,"Harry Nabuurs","Beers","A",null,15.75]
[6,"Martijn Graat","Heijen","Ere",null,18,null,null,7,"Markus Katalowski","Heijen","Ere",null,17.2,null,7,"Arie v/d Kimmenade","Boekel","A",null,15.67]
[7,"Theo van Kessel","Groeningen","Ere",null,18,null,null,8,"Marius Gieben","Oeffelt","Ere",null,17.2,null,8,"Frank Akkermans","Oss","A",null,15.6]
[8,"Theo Heijligers","Oploo","Ere",null,17.600000000000001,null,null,9,"Peter Jacobs","Groeningen","Ere",null,17.2,null,9,"Gerrit Ermers","Oploo","A",null,15.5]
[9,"Riny v.d. Bungelaar","Oploo","Ere",null,17.5,null,null,10,"Nico Hendriks","Beers","Ere",null,17,null,10,"Wesley Arts","Overloon","A","jeugd",15.5]
[10,"Stefan Heiltjes","Oeffelt","Ere",null,17.5,null,null,11,"Wim Hoevenaars","Hapert","Ere",null,17,null,11,"Piet Hendriks","Oss","A",null,15.5]
[11,"Marius Franssen","Beugen","Ere",null,17.399999999999999,null,null,12,"Theo van Kessel","Groeningen","Ere",null,17,null,12,"Theo Sommers","Oploo","A",null,15.4]
[12,"Gratia Brand","Hei en Boeicop","Ere","dame",17.2,null,null,13,"Jan Manders","Boekel","Ere",null,null,null,13,"Jan Leenders","Boekel","A",null,15.4]
[13,"Rien Claassen","Beers","Ere",null,17.2,null,null,14,"Lisanne ten Haaf","Beugen","Ere","dame",null,null,14,"Sjaak Verrijdt","Beugen","A",null,15.4]
[14,"Nick Hendriks","Beers","Ere",null,17,null,null,15,"Walter Huisman","Hei en Boeicop","Ere",null,null,null,15,"Michael Akkermans","Oss","A",null,15.4]
[15,"Wim Hoevenaars","Hapert","Ere",null,17,null,null,16,"Fons Brand","Hei en Boeicop","Ere",null,null,null,16,"Riny v.d. Bungelaar","Oploo","A",null,15]
[16,"Geert Arts","Overloon","A",null,16.8,null,null,17,"Rinie Bloemen","St. Anthonis","Ere",null,null,null,17,"Marius Franssen","Beugen","A",null,15]
[17,"Harry Nabuurs","Beers","A",null,16.8,null,null,18,"Jos Coppens","Geffen","Ere",null,null,null,18,"Jan Huibers","Hapert","A",null,15]
[18,"Frans Roersch","Afferden","A",null,16.75,null,null,19,"Piet van Erp","Geffen","Ere",null,null,null,19,"Rien Claassen","Beers","A",null,14.8]
[19,"Frank Akkermans","Oss","A",null,16.75,null,null,20,"Albert van Orsouw","Geffen","Ere",null,null,null,20,"Rinus Thijsen","Groeningen","A",null,14.6]
[20,"Rinus Thijsen","Groeningen","A",null,16.75,null,null,21,"Gerard Gerrits","Geffen","Ere",null,null,null,21,"Theo Heijligers","Oploo","A",null,14.2]
[21,"Gerrit Wientjes","St. Anthonis","A",null,16.5,null,null,22,"Henk Jans","Beers","Ere",null,null,null,22,"Jos Graat","Heijen","A",null,14.2]
[22,"Danny Hendriks","Beers","A",null,16.5,null,null,null,null,null,null,null,null,null,23,"Jan Centen","Beugen","A",null,14.2]
[23,"Michael Akkermans","Oss","A",null,16.329999999999998,null,null,1,"Veronique Rijnen","Groeningen","A","dame",19,null,24,"Math Rutten","Overloon","A",null,14]
[24,"Theo Groothusen","Beugen","A",null,16.2,null,null,2,"Peter Behet","Heijen","A",null,17,null,25,"Piet Vinck","Heijen","A",null,14]
[25,"Marius Gieben","Oeffelt","A",null,16.2,null,null,3,"Thijs Sanders","Boekel","A",null,16,null,26,"Chris Rijnen","Groeningen","A",null,14]
[26,"Theo Vervoort","Groeningen","A",null,16.2,null,null,4,"Tim van Lanen","Beers","A","jeugd",16,null,27,"Stefan Heiltjes","Oeffelt","A",null,13.8]
[27,"Thijs Sanders","Boekel","A",null,16,null,null,5,"Gerrit Behet","Heijen","A",null,15.8,null,28,"Jo Kremers","Oss","A",null,13.75]
[28,"Fons Brand","Hei en Boeicop","A",null,16,null,null,6,"Harry Nabuurs","Beers","A",null,15.75,null,29,"Ben v/d Zanden","Overloon","A",null,13.6]
[29,"Truus Kusters","Groeningen","A","dame",15.8,null,null,7,"Arie v/d Kimmenade","Boekel","A",null,15.67,null,30,"Noud Thelosen","Beers","A",null,13.6]
[30,"Wiel Peeters","St. Anthonis","A",null,15.75,null,null,8,"Frank Akkermans","Oss","A",null,15.6,null,31,"Thijs van Tilborg","St. Anthonis","A",null,13.4]
[31,"Arie v/d Kimmenade","Boekel","A",null,15.25,null,null,9,"Gerrit Ermers","Oploo","A",null,15.5,null,32,"Theo Vervoort","Groeningen","A",null,13.4]
[32,"Ronnie Sommers","Oploo","A",null,15,null,null,10,"Wesley Arts","Overloon","A","jeugd",15.5,null,33,"Marco Robbins","Oeffelt","A",null,13]
[33,"Jan Huibers","Hapert","A",null,15,null,null,11,"Piet Hendriks","Oss","A",null,15.5,null,34,"Willem Kirchmer","Hapert","A",null,13]
[34,"Piet Hendriks","Zeeland","A",null,15,null,null,12,"Theo Sommers","Oploo","A",null,15.4,null,35,"Arno v/d Ven","Overloon","A"]
[35,"Jos Graat","Heijen","A",null,14.8,null,null,13,"Jan Leenders","Boekel","A",null,15.4,null,36,"Jan Weren","Boekel","A"]
[36,"Peter Jacobs","Groeningen","A",null,14.67,null,null,14,"Sjaak Verrijdt","Beugen","A",null,15.4,null,37,"Gratia Brand","Hei en Boeicop","A","dame"]
[37,"Noud Thelosen","Beers","A",null,14.6,null,null,15,"Michael Akkermans","Oss","A",null,15.4,null,38,"Noud v. Lankveld","St. Anthonis","A"]
[38,"Jan van Sambeek","Oploo","A",null,14.4,null,null,16,"Riny v.d. Bungelaar","Oploo","A",null,15,null,39,"Willy Gezosky","St. Anthonis","A"]
[39,"Thijs van Tilborg","St. Anthonis","A",null,14.2,null,null,17,"Marius Franssen","Beugen","A",null,15,null,40,"Jan v/d Heijden","Geffen","A"]
[40,"Gerrit Ermers","Oploo","A",null,14,null,null,18,"Jan Huibers","Hapert","A",null,15,null,41,"Ben Visser","Geffen","A"]
[41,"Chris Rijnen","Groeningen","A",null,13.6,null,null,19,"Rien Claassen","Beers","A",null,14.8,null,42,"Rien Vos","Rosmalen","A"]
[42,"Leo v. Heumen","Hei en Boeicop","A",null,13.5,null,null,20,"Rinus Thijsen","Groeningen","A",null,14.6,null,43,"Lambert v/d Doelen","Rosmalen","A"]
[43,"Sjaak Peeters","St. Anthonis","A",null,13.4,null,null,21,"Theo Heijligers","Oploo","A",null,14.2,null,44,"Geert Janssen","Boxmeer","A"]
[44,"Marcel Hermens","St. Anthonis","A",null,13.3,null,null,22,"Jos Graat","Heijen","A",null,14.2,null,45,"Davy v/d Krabben","Groeningen","A"]
[45,"Gerrit Behet","Heijen","A",null,13.25,null,null,23,"Jan Centen","Beugen","A",null,14.2,null,46,"Anke v/d Krabben","Groeningen","A","dame"]
[46,"Marco Robbins","Oeffelt","A",null,13.2,null,null,24,"Math Rutten","Overloon","A",null,14,null,47,"Jens Loenen","Groeningen","A","jeugd"]
[47,"Jan Leenders","Boekel","A",null,13,null,null,25,"Piet Vinck","Heijen","A",null,14,null,48,"Mike Vloet","Groeningen","A"]
[48,"Dik de Vor","Hei en Boeicop","A",null,13,null,null,26,"Chris Rijnen","Groeningen","A",null,14]
[49,"Willem Kirchmer","Hapert","A",null,13,null,null,27,"Stefan Heiltjes","Oeffelt","A",null,13.8,null,null,"Naam","Plaats","Klasse","Jeugd","gem."]
[50,"Theo Sommers","Oploo","B",null,12.5,null,null,28,"Jo Kremers","Oss","A",null,13.75,null,1,"Annie Verberk","Overloon","B","dame",12.8]
[51,"Sjaak Verrijdt","Beugen","B",null,12.2,null,null,29,"Ben v/d Zanden","Overloon","A",null,13.6,null,2,"Toon Nabuurs","Oss","B",null,12.2]
[52,"Jo Vluggen","Boekel","B",null,12,null,null,30,"Noud Thelosen","Beers","A",null,13.6,null,3,"Gerrit Verheijen","Oploo","B",null,12]
[53,"Henk Strik","Beers","B",null,11.25,null,null,31,"Thijs van Tilborg","St. Anthonis","A",null,13.4,null,4,"Theo Groothusen","Beugen","B",null,12]
[54,"Antoon Graat","Heijen","B",null,10.4,null,null,32,"Theo Vervoort","Groeningen","A",null,13.4,null,5,"Frans Roersch","Oss","B",null,11.67]
[55,"Marcel Dekkers","Beugen","B",null,10.199999999999999,null,null,33,"Marco Robbins","Oeffelt","A",null,13,null,6,"Marcel Hermens","St. Anthonis","B",null,11.5]
[56,"Theo Gijsbers","Hapert","B",null,9,null,null,34,"Willem Kirchmer","Hapert","A",null,13,null,7,"Henk Strik","Beers","B",null,11.5]
[57,"Jan Manders","Boekel","Ere",null,null,null,null,35,"Arno v/d Ven","Overloon","A",null,null,null,8,"Chris van Cuijck","Overloon","B",null,11]
[58,"Jan Weren","Boekel","A",null,null,null,null,36,"Jan Weren","Boekel","A",null,null,null,9,"Frits Koolen","Boekel","B",null,11]
[59,"Frits Koolen","Boekel","B",null,null,null,null,37,"Gratia Brand","Hei en Boeicop","A","dame",null,null,10,"Martijn Graat","Heijen","B","jeugd",11]
[60,"Jos Coppens","Geffen","Ere",null,null,null,null,38,"Noud v. Lankveld","St. Anthonis","A",null,null,null,11,"Tiny de Haas","Oeffelt","B","dame",11]
[61,"Piet van Erp","Geffen","Ere",null,null,null,null,39,"Willy Gezosky","St. Anthonis","A",null,null,null,12,"Truus Kusters","Groeningen","B","dame",10.6]
[62,"Albert van Orsouw","Geffen","Ere",null,null,null,null,40,"Jan v/d Heijden","Geffen","A",null,null,null,13,"Jo Vluggen","Boekel","B",null,10.5]
[63,"Jan v/d Heijden","Geffen","A",null,null,null,null,41,"Ben Visser","Geffen","A",null,null,null,14,"Cor Goemans","Boxmeer","B",null,10.333]
[64,"Gerard Gerrits","Geffen","Ere",null,null,null,null,42,"Rien Vos","Rosmalen","A",null,null,null,15,"Henk Jans","Oeffelt","B",null,10.25]
[65,"Ben Visser","Geffen","A",null,null,null,null,43,"Lambert v/d Doelen","Rosmalen","A",null,null,null,16,"Jan van Sambeek","Oploo","B",null,10]
[null,null,null,null,null,null,null,null,44,"Geert Janssen","Boxmeer","A",null,null,null,17,"Theo Gijsbers","Hapert","B",null,9]
[null,null,null,null,null,null,null,null,45,"Davy v/d Krabben","Groeningen","A",null,null,null,18,"Gerrit Aben","St. Anthonis","B",null,8.5]
[null,null,null,null,null,null,null,null,46,"Anke v/d Krabben","Groeningen","A","dame",null,null,19,"Louis v/d Zanden","St. Anthonis","B",null,8.5]
[null,null,null,null,null,null,null,null,47,"Jens Loenen","Groeningen","A","jeugd",null,null,20,"Antoon Graat","Heijen","B",null,8.25]
[null,null,null,null,null,null,null,null,48,"Mike Vloet","Groeningen","A",null,null,null,21,"Toon Philips","Beugen","B",null,8]
[null,null,null,null,null,null,null,null,1,"Annie Verberk","Overloon","B","dame",12.8,null,22,"Danny Hendriks","Beers","B","jeugd",8]
[null,null,null,null,null,null,null,null,2,"Toon Nabuurs","Oss","B",null,12.2,null,23,"Marinus v/d Veer","Boxmeer","B",null,8]
[null,null,null,null,null,null,null,null,3,"Gerrit Verheijen","Oploo","B",null,12,null,24,"Morgan Veekens","Groeningen","B",null,8]
[null,null,null,null,null,null,null,null,4,"Theo Groothusen","Beugen","B",null,12,null,25,"Niek Huffels","St. Anthonis","B",null,7.75]
[null,null,null,null,null,null,null,null,5,"Frans Roersch","Oss","B",null,11.67,null,26,"Gerrit de Haas","Oeffelt","B",null,6]
[null,null,null,null,null,null,null,null,6,"Marcel Hermens","St. Anthonis","B",null,11.5,null,27,"Leo de Wit","Oeffelt","B",null,5]
[null,null,null,null,null,null,null,null,7,"Henk Strik","Beers","B",null,11.5,null,28,"Theo Kuijpers","Groeningen","B",null,5]
[null,null,null,null,null,null,null,null,8,"Chris van Cuijck","Overloon","B",null,11,null,29,"Mark Jans","Overloon","B"]
[null,null,null,null,null,null,null,null,9,"Frits Koolen","Boekel","B",null,11,null,30,"Leo v. Heumen","Hei en Boeicop","B"]
[null,null,null,null,null,null,null,null,10,"Martijn Graat","Heijen","B","jeugd",11,null,31,"Jan van Tilborg","St. Anthonis","B"]
[null,null,null,null,null,null,null,null,11,"Tiny de Haas","Oeffelt","B","dame",11,null,32,"Ad v/d Vorst","St. Anthonis","B"]
[null,null,null,null,null,null,null,null,12,"Truus Kusters","Groeningen","B","dame",10.6,null,33,"Teun van Tilborg","St. Anthonis","B"]
[null,null,null,null,null,null,null,null,13,"Jo Vluggen","Boekel","B",null,10.5]
[null,null,null,null,null,null,null,null,14,"Cor Goemans","Boxmeer","B",null,10.333]
[null,null,null,null,null,null,null,null,15,"Henk Jans","Oeffelt","B",null,10.25]
[null,null,null,null,null,null,null,null,16,"Jan van Sambeek","Oploo","B",null,10]
[null,null,null,null,null,null,null,null,17,"Theo Gijsbers","Hapert","B",null,9]
[null,null,null,null,null,null,null,null,18,"Gerrit Aben","St. Anthonis","B",null,8.5]
[null,null,null,null,null,null,null,null,19,"Louis v/d Zanden","St. Anthonis","B",null,8.5]
[null,null,null,null,null,null,null,null,20,"Antoon Graat","Heijen","B",null,8.25]
[null,null,null,null,null,null,null,null,21,"Toon Philips","Beugen","B",null,8]
[null,null,null,null,null,null,null,null,22,"Danny Hendriks","Beers","B","jeugd",8]
[null,null,null,null,null,null,null,null,23,"Marinus v/d Veer","Boxmeer","B",null,8]
[null,null,null,null,null,null,null,null,24,"Morgan Veekens","Groeningen","B",null,8]
[null,null,null,null,null,null,null,null,25,"Niek Huffels","St. Anthonis","B",null,7.75]
[null,null,null,null,null,null,null,null,26,"Gerrit de Haas","Oeffelt","B",null,6]
[null,null,null,null,null,null,null,null,27,"Leo de Wit","Oeffelt","B",null,5]
[null,null,null,null,null,null,null,null,28,"Theo Kuijpers","Groeningen","B",null,5]
[null,null,null,null,null,null,null,null,29,"Mark Jans","Overloon","B"]
[null,null,null,null,null,null,null,null,30,"Leo v. Heumen","Hei en Boeicop","B"]
[null,null,null,null,null,null,null,null,31,"Jan van Tilborg","St. Anthonis","B"]
[null,null,null,null,null,null,null,null,32,"Ad v/d Vorst","St. Anthonis","B"]
[null,null,null,null,null,null,null,null,33,"Teun van Tilborg","St. Anthonis","B"]

{"sheet":"Financieel","index":28,"n_rows":20,"n_cols":10,"rows_kept":20,"cut":false,"hidden":false,"merged":[[0,1,0,4],[1,1,1,4],[5,6,5,7]]}
[null,"Open wedstrijden Kruisboog op wip 2022"]
[null,"Financieel overzicht"]
[]
[null,null,"Inleg","Prijzen","Bloemen"]
["2022-04-09","Prijzen 1e Open wedstrijd wip 2023 in Groeningen"]
["2022-04-09","Inleggeld 1e Open wedstrijd wip 2023 Groeningen (-- volwassenen +  -- jeugd)",{"$f":"I20","v":57.500000000124999},null,null,null,"Aantal medailles",null,2019]
["2022-05-21","Prijzen 2e Open wedstrijd wip 2023 in Groeningen",null,null,null,null,"Algemeen",null,1,{"$f":"45/5","v":9}]
["2022-05-21","Inleggeld 2e Open wedstrijd wip 2022 Groeningen (-- volwassenen + -- jeugd)",null,null,null,null,"Ere",null,3]
["2022-06-25","Inleggeld Open N.K. wip 2022 Heijen (-- volwassenen + -- jeugd)",null,null,null,null,"A",null,3]
["2022-06-25","Prijzen Open N.K. wip 2022 Heijen",null,{"$f":"H15*3.5","v":0},null,null,"B",null,3]
["2022-06-25","Bloemen Open N.K. wip 2022 Heijen ( 5 boeketten á ± € 9,00)",null,null,null,null,"Jeugd",null,1]
[null,null,{"$f":"SUM(C5:C11)","v":57.500000000124999},{"$f":"SUM(D5:D11)","v":0},0,null,"Dames",null,1]
[null,null,null,null,null,null,"Korps",null,3]
[null,null,null,null,null,null,"Korpsschutters",null,4]
[null,null,{"$f":"C12-D12-E12","v":57.500000000124999},{"$f":"IF(C15<0,\"te kort in 2022\",\"over in 2022\")","v":"over in 2022"},null,null,null,{"$f":"SUM(H7:H14)","v":0},{"$f":"SUM(I7:I14)","v":19}]
[]
[null,null,null,null,null,null,"Inleggeld","Deelnemers","Inleggeld"]
[null,null,null,null,null,null,"Volwassenen",{"$f":"Prijzen!D5-Prijzen!D38","v":23},{"$f":"H18*2.5","v":57.5}]
[null,null,null,null,null,null,"Jeugd",{"$f":"Prijzen!D38","v":1E-10},{"$f":"H19*1.25","v":1.2500000000000001E-10}]
[null,null,null,null,null,null,null,{"$f":"SUM(H18:H19)","v":23.000000000099998},{"$f":"SUM(I18:I19)","v":57.500000000124999}]